Workbook

Sheet ANLAGENVERZEICHNISSE
C1: Anlageverzeichnisse | I1: Gruppe: | J1: 1
C3: Berechnung der Abschreibung
C4: Berechnung der Buchwerte am Beginn und am Ende des Jahres
C6: Anlageverzeichnis Gebäude | Q6: 1 | R6: 2 | S6: 3 | T6: 4 | U6: 5 | V6: 6 | W6: 7 | X6: 8 | Y6: 9 | Z6: 10 | AA6: 11 | AB6: 12 | AC6: 13 | AD6: 14 | AE6: 15 | AF6: 16 | AG6: 17 | AH6: 18 | AI6: 19 | AJ6: 20 | AK6: 21 | AL6: 22 | AM6: 23 | AN6: 24 | AO6: 25 | AP6: 26 | AQ6: 27 | AR6: 28 | AS6: 29 | AT6: 30 | AW6: 1 | AX6: 2 | AY6: 3 | AZ6: 4 | BA6: 5 | BB6: 6 | BC6: 7 | BD6: 8 | BE6: 9 | BF6: 10 | BG6: 11 | BH6: 12 | BI6: 13 | BJ6: 14 | BK6: 15 | BL6: 16 | BM6: 17 | BN6: 18 | BO6: 19 | BP6: 20 | BQ6: 21 | BR6: 22 | BS6: 23 | BT6: 24 | BU6: 25 | BV6: 26 | BW6: 27 | BX6: 28 | BY6: 29 | BZ6: 30
C7: Bezeichnung | D7: Anschaf- fung | E7: Anschaf-fungs-kosten | F7: Nutz- ungs-dauer | G7: Abschrei-bung pro Jahr | H7: AfA bis 31.12.xx | I7: Wert am 1.01.xx | J7: Wert am 31.12.xx | N7: Alter | Q7: Haupt- variante | R7: -0.1 | S7: 0.02 | T7: 0.06 | U7: -0.03 | V7: -0.04 | W7: 0.22 | X7: -0.15 | Y7: 0.08 | Z7: 0.03 | AA7: -0.02 | AB7: 0.19 | AC7: 0.07 | AD7: 0.05 | AE7: -0.16 | AF7: -0.06 | AG7: 0.12 | AH7: -0.05 | AI7: 0.06 | AJ7: 0.08 | AK7: 0.04 | AL7: -0.2 | AM7: -0.07 | AN7: 0.09 | AO7: 0.15 | AP7: -0.18 | AQ7: -0.11 | AR7: 0.17 | AS7: -0.1 | AT7: -0.06 | AW7: Haupt- variante | AX7: =R7 -> -0.1 | AY7: =S7 -> 0.02 | AZ7: 0.06 | BA7: -0.03 | BB7: -0.04 | BC7: 0.22 | BD7: -0.15 | BE7: 0.08 | BF7: 0.03 | BG7: -0.02 | BH7: 0.19 | BI7: 0.07 | BJ7: 0.05 | BK7: -0.16 | BL7: -0.06 | BM7: 0.12 | BN7: -0.05 | BO7: 0.06 | BP7: 0.08 | BQ7: 0.04 | BR7: -0.2 | BS7: -0.07 | BT7: 0.09 | BU7: 0.15 | BV7: -0.18 | BW7: -0.11 | BX7: 0.17 | BY7: -0.1 | BZ7: -0.06
C8: Rinderstall | D8: 01.05.xxxx | E8: =IF(TYPE(VLOOKUP($C8,$P$6:$AT$28,$J$1+1,0))=16,"",VLOOKUP($C8,$P$6:$AT$28,$J$1+1,0)) -> 155000 | F8: =IF(TYPE(VLOOKUP($C8,$AV$6:$BZ$28,$J$1+1,0))=16,"",VLOOKUP($C8,$AV$6:$BZ$28,$J$1+1,0)) -> 25 | G8: =IF(OR(E8="",F8=""),"",IF(N8>=F8,0,E8/F8)) -> 6200 | H8: =IF((E8/F8)*N8=0,0,IF((E8/F8)*N8>E8,E8,(E8/F8)*N8)) -> 62000 | I8: =IF(N8=0,0,IF(OR(E8="",H8=""),"",E8-H8)) -> 93000 | J8: =IF(N8=0,E8-G8,IF(OR(G8="",I8=""),"",+I8-G8)) -> 86800 | N8: =F8-15 -> 10 | P8: =IF(C8="","",C8) -> Rinderstall | Q8: 155000 | R8: =MROUND($Q8+$Q8*R$7,$F8) -> 139500 | S8: 158100 | T8: 164300 | U8: 150350 | V8: 148800 | W8: 189100 | X8: 131750 | Y8: 167400 | Z8: 159650 | AA8: 151900 | AB8: 184450 | AC8: 165850 | AD8: 162750 | AE8: 130200 | AF8: 145700 | AG8: 173600 | AH8: 147250 | AI8: 164300 | AJ8: 167400 | AK8: 161200 | AL8: 124000 | AM8: 144150 | AN8: 168950 | AO8: 178250 | AP8: 127100 | AQ8: 137950 | AR8: 181350 | AS8: 139500 | AT8: 145700 | AV8: =IF(C8="","",C8) -> Rinderstall | AW8: 25 | AX8: =EVEN($AW8+$AW8*AX$7) -> 24 | AY8: 26 | AZ8: 28 | BA8: 26 | BB8: 24 | BC8: 32 | BD8: 22 | BE8: 28 | BF8: 26 | BG8: 26 | BH8: 30 | BI8: 28 | BJ8: 28 | BK8: 22 | BL8: 24 | BM8: 28 | BN8: 24 | BO8: 28 | BP8: 28 | BQ8: 26 | BR8: 20 | BS8: 24 | BT8: 28 | BU8: 30 | BV8: 22 | BW8: 24 | BX8: 30 | BY8: 24 | BZ8: 24
C9: Futterlager | D9: 23.04.xxxx | E9: =IF(TYPE(VLOOKUP($C9,$P$6:$AT$28,$J$1+1,0))=16,"",VLOOKUP($C9,$P$6:$AT$28,$J$1+1,0)) -> 25000 | F9: =IF(TYPE(VLOOKUP($C9,$AV$6:$BZ$28,$J$1+1,0))=16,"",VLOOKUP($C9,$AV$6:$BZ$28,$J$1+1,0)) -> 20 | G9: 1250 | H9: 7500 | I9: 17500 | J9: 16250 | N9: =F9-14 -> 6 | P9: =IF(C9="","",C9) -> Futterlager | Q9: 25000 | R9: =MROUND($Q9+$Q9*R$7,$F9) -> 22500 | S9: =MROUND($Q9+$Q9*S$7,$F9) -> 25500 | T9: 26500 | U9: 24260 | V9: 24000 | W9: 30500 | X9: 21260 | Y9: 27000 | Z9: 25760 | AA9: 24500 | AB9: 29760 | AC9: =MROUND($Q9+$Q9*AC$7,$F9) -> 26760 | AD9: 26260 | AE9: 21000 | AF9: 23500 | AG9: 28000 | AH9: 23760 | AI9: 26500 | AJ9: 27000 | AK9: 26000 | AL9: 20000 | AM9: =MROUND($Q9+$Q9*AM$7,$F9) -> 23260 | AN9: 27260 | AO9: 28760 | AP9: 20500 | AQ9: 22260 | AR9: 29260 | AS9: 22500 | AT9: 23500 | AV9: =IF(C9="","",C9) -> Futterlager | AW9: 20 | AX9: =EVEN($AW9+$AW9*AX$7) -> 18 | AY9: 22 | AZ9: 22 | BA9: 20 | BB9: 20 | BC9: 26 | BD9: 18 | BE9: 22 | BF9: 22 | BG9: 20 | BH9: 24 | BI9: 22 | BJ9: 22 | BK9: 18 | BL9: 20 | BM9: 24 | BN9: 20 | BO9: 22 | BP9: 22 | BQ9: 22 | BR9: 16 | BS9: 20 | BT9: 22 | BU9: 24 | BV9: 18 | BW9: 18 | BX9: 24 | BY9: 18 | BZ9: 20
C10: Güllegrube | D10: 17.04.xxxx | E10: =IF(TYPE(VLOOKUP($C10,$P$6:$AT$28,$J$1+1,0))=16,"",VLOOKUP($C10,$P$6:$AT$28,$J$1+1,0)) -> 16000 | F10: =IF(TYPE(VLOOKUP($C10,$AV$6:$BZ$28,$J$1+1,0))=16,"",VLOOKUP($C10,$AV$6:$BZ$28,$J$1+1,0)) -> 20 | G10: 800 | H10: 12800 | I10: 3200 | J10: 2400 | N10: =F10-4 -> 16 | P10: Güllegrube | Q10: 16000 | R10: 14400 | S10: 16320 | T10: 16960 | U10: 15520 | V10: 15360 | W10: 19520 | X10: 13600 | Y10: 17280 | Z10: 16480 | AA10: 15680 | AB10: 19040 | AC10: 17120 | AD10: 16800 | AE10: 13440 | AF10: 15040 | AG10: 17920 | AH10: 15200 | AI10: 16960 | AJ10: 17280 | AK10: 16640 | AL10: 12800 | AM10: 14880 | AN10: 17440 | AO10: 18400 | AP10: 13120 | AQ10: 14240 | AR10: 18720 | AS10: 14400 | AT10: 15040 | AV10: =IF(C10="","",C10) -> Güllegrube | AW10: 20 | AX10: 18 | AY10: 22 | AZ10: 22 | BA10: 20 | BB10: 20 | BC10: 26 | BD10: 18 | BE10: 22 | BF10: 22 | BG10: 20 | BH10: 24 | BI10: 22 | BJ10: 22 | BK10: 18 | BL10: 20 | BM10: 24 | BN10: 20 | BO10: 22 | BP10: 22 | BQ10: 22 | BR10: 16 | BS10: 20 | BT10: 22 | BU10: 24 | BV10: 18 | BW10: 18 | BX10: 24 | BY10: 18 | BZ10: 20
C11: Ferienwohnung | D11: 12.05.xxxx | E11: =IF(TYPE(VLOOKUP($C11,$P$6:$AT$28,$J$1+1,0))=16,"",VLOOKUP($C11,$P$6:$AT$28,$J$1+1,0)) -> 36500 | F11: =IF(TYPE(VLOOKUP($C11,$AV$6:$BZ$28,$J$1+1,0))=16,"",VLOOKUP($C11,$AV$6:$BZ$28,$J$1+1,0)) -> 15 | G11: 2433.333333 | H11: 17033.33333 | I11: 19466.66667 | J11: 17033.33333 | N11: =F11-8 -> 7 | P11: Ferienwohnung | Q11: 36500 | R11: 32850 | S11: 37230 | T11: 38685 | U11: 35400 | V11: 35040 | W11: 44535 | X11: 31020 | Y11: 39420 | Z11: 37590 | AA11: 35775 | AB11: 43440 | AC11: 39060 | AD11: 38325 | AE11: 30660 | AF11: 34305 | AG11: 40875 | AH11: 34680 | AI11: 38685 | AJ11: 39420 | AK11: 37965 | AL11: 29205 | AM11: 33945 | AN11: 39780 | AO11: 41970 | AP11: 29925 | AQ11: 32490 | AR11: 42705 | AS11: 32850 | AT11: 34305 | AV11: =IF(C11="","",C11) -> Ferienwohnung | AW11: 15 | AX11: 14 | AY11: 16 | AZ11: 16 | BA11: 16 | BB11: 16 | BC11: 20 | BD11: 14 | BE11: 18 | BF11: 16 | BG11: 16 | BH11: 18 | BI11: 18 | BJ11: 16 | BK11: 14 | BL11: 16 | BM11: 18 | BN11: 16 | BO11: 16 | BP11: 18 | BQ11: 16 | BR11: 12 | BS11: 14 | BT11: 18 | BU11: 18 | BV11: 14 | BW11: 14 | BX11: 18 | BY11: 14 | BZ11: 16
C12: Maschinenhalle | D12: 30.03.xxxx | E12: =IF(TYPE(VLOOKUP($C12,$P$6:$AT$28,$J$1+1,0))=16,"",VLOOKUP($C12,$P$6:$AT$28,$J$1+1,0)) -> 18500 | F12: =IF(TYPE(VLOOKUP($C12,$AV$6:$BZ$28,$J$1+1,0))=16,"",VLOOKUP($C12,$AV$6:$BZ$28,$J$1+1,0)) -> 30 | G12: 616.6666667 | H12: 17266.66667 | I12: 1233.333333 | J12: 616.6666667 | N12: =F12-2 -> 28 | P12: Maschinenhalle | Q12: 18500 | R12: 16650 | S12: 18870 | T12: 19620 | U12: 17940 | V12: 17760 | W12: 22560 | X12: 15720 | Y12: 19980 | Z12: 19050 | AA12: 18120 | AB12: 22020 | AC12: 19800 | AD12: 19440 | AE12: 15540 | AF12: 17400 | AG12: 20730 | AH12: 17580 | AI12: 19620 | AJ12: 19980 | AK12: 19230 | AL12: 14790 | AM12: 17220 | AN12: 20160 | AO12: 21270 | AP12: 15180 | AQ12: 16470 | AR12: 21660 | AS12: 16650 | AT12: 17400 | AV12: =IF(C12="","",C12) -> Maschinenhalle | AW12: 30 | AX12: 28 | AY12: 32 | AZ12: 32 | BA12: 30 | BB12: 30 | BC12: 38 | BD12: 26 | BE12: 34 | BF12: 32 | BG12: 30 | BH12: 36 | BI12: 34 | BJ12: 32 | BK12: 26 | BL12: 30 | BM12: 34 | BN12: 30 | BO12: 32 | BP12: 34 | BQ12: 32 | BR12: 24 | BS12: 28 | BT12: 34 | BU12: 36 | BV12: 26 | BW12: 28 | BX12: 36 | BY12: 28 | BZ12: 30
C13: Abschreibung | E13: =SUM(E8:E12) -> 251000 | G13: =SUM(G8:G12) -> 11300
C14: Buchwerte | I14: =SUM(I8:I12) -> 134400 | J14: =SUM(J8:J12) -> 123100
C16: Anlageverzeichnis Maschinen und Geräte | Q16: 1 | R16: 2 | S16: 3 | T16: 4 | U16: 5 | V16: 6 | W16: 7 | X16: 8 | Y16: 9 | Z16: 10 | AA16: 11 | AB16: 12 | AC16: 13 | AD16: 14 | AE16: 15 | AF16: 16 | AG16: 17 | AH16: 18 | AI16: 19 | AJ16: 20 | AK16: 21 | AL16: 22 | AM16: 23 | AN16: 24 | AO16: 25 | AP16: 26 | AQ16: 27 | AR16: 28 | AS16: 29 | AT16: 30 | AW16: 1 | AX16: 2 | AY16: 3 | AZ16: 4 | BA16: 5 | BB16: 6 | BC16: 7 | BD16: 8 | BE16: 9 | BF16: 10 | BG16: 11 | BH16: 12 | BI16: 13 | BJ16: 14 | BK16: 15 | BL16: 16 | BM16: 17 | BN16: 18 | BO16: 19 | BP16: 20 | BQ16: 21 | BR16: 22 | BS16: 23 | BT16: 24 | BU16: 25 | BV16: 26 | BW16: 27 | BX16: 28 | BY16: 29 | BZ16: 30
C17: Bezeichnung | D17: Anschaf- fung | E17: Anschaf-fungs-kosten | F17: Nutz- ungs-dauer | G17: Abschrei-bung pro Jahr | H17: AfA bis 31.12.xx | I17: Wert am 1.01.xx | J17: Wert am 31.12.xx | N17: Alter | Q17: Haupt- variante | R17: =R7 -> -0.1 | S17: =S7 -> 0.02 | T17: 0.06 | U17: -0.03 | V17: -0.04 | W17: 0.22 | X17: -0.15 | Y17: 0.08 | Z17: 0.03 | AA17: -0.02 | AB17: 0.19 | AC17: 0.07 | AD17: 0.05 | AE17: -0.16 | AF17: -0.06 | AG17: 0.12 | AH17: -0.05 | AI17: 0.06 | AJ17: 0.08 | AK17: 0.04 | AL17: -0.2 | AM17: -0.07 | AN17: 0.09 | AO17: 0.15 | AP17: -0.18 | AQ17: -0.11 | AR17: 0.17 | AS17: -0.1 | AT17: -0.06 | AW17: Haupt- variante | AX17: =AX7 -> -0.1 | AY17: =AY7 -> 0.02 | AZ17: 0.06 | BA17: -0.03 | BB17: -0.04 | BC17: 0.22 | BD17: -0.15 | BE17: 0.08 | BF17: 0.03 | BG17: -0.02 | BH17: 0.19 | BI17: 0.07 | BJ17: 0.05 | BK17: -0.16 | BL17: -0.06 | BM17: 0.12 | BN17: -0.05 | BO17: 0.06 | BP17: 0.08 | BQ17: 0.04 | BR17: -0.2 | BS17: -0.07 | BT17: 0.09 | BU17: 0.15 | BV17: -0.18 | BW17: -0.11 | BX17: 0.17 | BY17: -0.1 | BZ17: -0.06
C18: Allradtraktor | D18: 21.10.xxxx | E18: =IF(TYPE(VLOOKUP($C18,$P$6:$AT$28,$J$1+1,0))=16,"",VLOOKUP($C18,$P$6:$AT$28,$J$1+1,0)) -> 66006 | F18: =IF(TYPE(VLOOKUP($C18,$AV$6:$BZ$28,$J$1+1,0))=16,"",VLOOKUP($C18,$AV$6:$BZ$28,$J$1+1,0)) -> 18 | G18: =IF(OR(E18="",F18=""),"",IF(N18>=F18,0,E18/F18)) -> 3667 | H18: =IF((E18/F18)*N18=0,0,IF((E18/F18)*N18>E18,E18,(E18/F18)*N18)) -> 3667 | I18: =IF(N18=0,0,IF(OR(E18="",H18=""),"",E18-H18)) -> 62339 | J18: =IF(N18=0,E18-G18,IF(OR(G18="",I18=""),"",+I18-G18)) -> 58672 | N18: 1 | P18: Allradtraktor | Q18: 66006 | R18: =MROUND($Q18+$Q18*R$7,$F18) -> 59400 | S18: 67320 | T18: 69966 | U18: 64026 | V18: 63360 | W18: 80532 | X18: 56106 | Y18: 71280 | Z18: 67986 | AA18: 64692 | AB18: =MROUND($Q18+$Q18*AB$7,$F18) -> 78552 | AC18: 70632 | AD18: 69300 | AE18: 55440 | AF18: 62046 | AG18: 73926 | AH18: 62712 | AI18: 69966 | AJ18: 71280 | AK18: 68652 | AL18: =MROUND($Q18+$Q18*AL$7,$F18) -> 52812 | AM18: 61380 | AN18: 71946 | AO18: 75906 | AP18: 54126 | AQ18: 58752 | AR18: 77220 | AS18: 59400 | AT18: 62046 | AV18: =IF(C18="","",C18) -> Allradtraktor | AW18: 18 | AX18: =EVEN($AW18+$AW18*AX$7) -> 18 | AY18: 20 | AZ18: 20 | BA18: 18 | BB18: 18 | BC18: 22 | BD18: 16 | BE18: 20 | BF18: 20 | BG18: 18 | BH18: 22 | BI18: 20 | BJ18: 20 | BK18: 16 | BL18: 18 | BM18: 22 | BN18: =EVEN($AW18+$AW18*BN$7) -> 18 | BO18: 20 | BP18: 20 | BQ18: 20 | BR18: 16 | BS18: 18 | BT18: 20 | BU18: 22 | BV18: 16 | BW18: 18 | BX18: 22 | BY18: 18 | BZ18: 18
C19: Hinterradtraktor | D19: 11.02.xxxx | E19: 45200 | F19: 15 | G19: =IF(OR(E19="",F19=""),"",IF(N19>=F19,0,E19/F19)) -> 0 | H19: =IF((E19/F19)*N19=0,0,IF((E19/F19)*N19>E19,E19,(E19/F19)*N19)) -> 45200 | I19: =IF(N19=0,0,IF(OR(E19="",H19=""),"",E19-H19)) -> 0 | J19: =IF(N19=0,E19-G19,IF(OR(G19="",I19=""),"",+I19-G19)) -> 0 | N19: =F19 -> 15 | P19: Hinterradtraktor | Q19: 45200 | R19: 40680 | S19: 46110 | T19: 47910 | U19: 43845 | V19: 43395 | W19: 55140 | X19: 38415 | Y19: 48810 | Z19: 46560 | AA19: 44295 | AB19: 53790 | AC19: 48360 | AD19: 47460 | AE19: 37965 | AF19: 42495 | AG19: 50625 | AH19: 42945 | AI19: 47910 | AJ19: 48810 | AK19: 47010 | AL19: 36165 | AM19: 42030 | AN19: 49275 | AO19: 51975 | AP19: 37065 | AQ19: 40230 | AR19: 52890 | AS19: 40680 | AT19: 42495 | AV19: Hinterradtraktor | AW19: 15 | AX19: 14 | AY19: 16 | AZ19: 16 | BA19: 16 | BB19: 16 | BC19: 20 | BD19: 14 | BE19: 18 | BF19: 16 | BG19: 16 | BH19: 18 | BI19: 18 | BJ19: 16 | BK19: 14 | BL19: 16 | BM19: 18 | BN19: 16 | BO19: 16 | BP19: 18 | BQ19: 16 | BR19: 12 | BS19: 14 | BT19: 18 | BU19: 18 | BV19: 14 | BW19: 14 | BX19: 18 | BY19: 14 | BZ19: 16
C20: Pflug | D20: 07.04.xxxx | E20: 7580 | F20: 20 | G20: 0 | H20: 7580 | I20: 0 | J20: 0 | N20: =F20 -> 20 | P20: Pflug | Q20: 7580 | R20: 6820 | S20: 7740 | T20: 8040 | U20: 7360 | V20: 7280 | W20: 9240 | X20: 6440 | Y20: 8180 | Z20: 7800 | AA20: 7420 | AB20: 9020 | AC20: 8120 | AD20: 7960 | AE20: 6360 | AF20: 7120 | AG20: 8480 | AH20: 7200 | AI20: 8040 | AJ20: 8180 | AK20: 7880 | AL20: 6060 | AM20: 7040 | AN20: 8260 | AO20: 8720 | AP20: 6220 | AQ20: 6740 | AR20: 8860 | AS20: 6820 | AT20: 7120 | AV20: Pflug | AW20: 20 | AX20: 18 | AY20: 22 | AZ20: 22 | BA20: 20 | BB20: 20 | BC20: 26 | BD20: 18 | BE20: 22 | BF20: 22 | BG20: 20 | BH20: 24 | BI20: 22 | BJ20: 22 | BK20: 18 | BL20: 20 | BM20: 24 | BN20: 20 | BO20: 22 | BP20: 22 | BQ20: 22 | BR20: 16 | BS20: 20 | BT20: 22 | BU20: 24 | BV20: 18 | BW20: 18 | BX20: 24 | BY20: 18 | BZ20: 20
C21: Saatbettkombination | D21: 11.05.xxxx | E21: 5600 | F21: 20 | G21: 280 | H21: 560 | I21: 5040 | J21: 4760 | N21: 2 | P21: Saatbettkombination | Q21: 5600 | R21: 5040 | S21: 5720 | T21: 5940 | U21: 5440 | V21: 5380 | W21: 6840 | X21: 4760 | Y21: 6040 | Z21: 5760 | AA21: 5480 | AB21: 6660 | AC21: 6000 | AD21: 5880 | AE21: 4700 | AF21: 5260 | AG21: 6280 | AH21: 5320 | AI21: 5940 | AJ21: 6040 | AK21: 5820 | AL21: 4480 | AM21: 5200 | AN21: 6100 | AO21: 6440 | AP21: 4600 | AQ21: 4980 | AR21: 6560 | AS21: 5040 | AT21: 5260 | AV21: Saatbettkombination | AW21: 20 | AX21: 18 | AY21: 22 | AZ21: 22 | BA21: 20 | BB21: 20 | BC21: 26 | BD21: 18 | BE21: 22 | BF21: 22 | BG21: 20 | BH21: 24 | BI21: 22 | BJ21: 22 | BK21: 18 | BL21: 20 | BM21: 24 | BN21: 20 | BO21: 22 | BP21: 22 | BQ21: 22 | BR21: 16 | BS21: 20 | BT21: 22 | BU21: 24 | BV21: 18 | BW21: 18 | BX21: 24 | BY21: 18 | BZ21: 20
C22: Sämaschine | D22: 31.03.xxxx | E22: 8660 | F22: 20 | G22: 433 | H22: 433 | I22: 8227 | J22: 7794 | N22: 1 | P22: Sämaschine | Q22: 8660 | R22: 7800 | S22: 8840 | T22: 9180 | U22: 8400 | V22: 8320 | W22: 10560 | X22: 7360 | Y22: 9360 | Z22: 8920 | AA22: 8480 | AB22: 10300 | AC22: 9260 | AD22: 9100 | AE22: 7280 | AF22: 8140 | AG22: 9700 | AH22: 8220 | AI22: 9180 | AJ22: 9360 | AK22: 9000 | AL22: 6920 | AM22: 8060 | AN22: 9440 | AO22: 9960 | AP22: 7100 | AQ22: 7700 | AR22: 10140 | AS22: 7800 | AT22: 8140 | AV22: Sämaschine | AW22: 20 | AX22: 18 | AY22: 22 | AZ22: 22 | BA22: 20 | BB22: 20 | BC22: 26 | BD22: 18 | BE22: 22 | BF22: 22 | BG22: 20 | BH22: 24 | BI22: 22 | BJ22: 22 | BK22: 18 | BL22: 20 | BM22: 24 | BN22: 20 | BO22: 22 | BP22: 22 | BQ22: 22 | BR22: 16 | BS22: 20 | BT22: 22 | BU22: 24 | BV22: 18 | BW22: 18 | BX22: 24 | BY22: 18 | BZ22: 20
C23: Pflanzenschutzgerät | D23: 01.05.xxxx | E23: 6660 | F23: 20 | G23: 333 | H23: 666 | I23: 5994 | J23: 5661 | N23: 2 | P23: Pflanzenschutzgerät | Q23: 6660 | R23: 6000 | S23: 6800 | T23: 7060 | U23: 6460 | V23: 6400 | W23: 8120 | X23: 5660 | Y23: 7200 | Z23: 6860 | AA23: 6520 | AB23: 7920 | AC23: 7120 | AD23: 7000 | AE23: 5600 | AF23: 6260 | AG23: 7460 | AH23: 6320 | AI23: 7060 | AJ23: 7200 | AK23: 6920 | AL23: 5320 | AM23: 6200 | AN23: 7260 | AO23: 7660 | AP23: 5460 | AQ23: 5920 | AR23: 7800 | AS23: 6000 | AT23: 6260 | AV23: Pflanzenschutzgerät | AW23: 20 | AX23: 18 | AY23: 22 | AZ23: 22 | BA23: 20 | BB23: 20 | BC23: 26 | BD23: 18 | BE23: 22 | BF23: 22 | BG23: 20 | BH23: 24 | BI23: 22 | BJ23: 22 | BK23: 18 | BL23: 20 | BM23: 24 | BN23: 20 | BO23: 22 | BP23: 22 | BQ23: 22 | BR23: 16 | BS23: 20 | BT23: 22 | BU23: 24 | BV23: 18 | BW23: 18 | BX23: 24 | BY23: 18 | BZ23: 20
C24: Düngerstreuer | D24: 23.11.xxxx | E24: 4100 | F24: 15 | G24: 0 | H24: 4100 | I24: 0 | J24: 0 | N24: =F24 -> 15 | P24: Düngerstreuer | Q24: 4100 | R24: 3690 | S24: 4185 | T24: 4350 | U24: 3975 | V24: 3930 | W24: 4995 | X24: 3480 | Y24: 4425 | Z24: 4230 | AA24: 4020 | AB24: 4875 | AC24: 4380 | AD24: 4305 | AE24: 3450 | AF24: 3855 | AG24: 4590 | AH24: 3900 | AI24: 4350 | AJ24: 4425 | AK24: 4260 | AL24: 3285 | AM24: 3810 | AN24: 4470 | AO24: 4710 | AP24: 3360 | AQ24: 3645 | AR24: 4800 | AS24: 3690 | AT24: 3855 | AV24: Düngerstreuer | AW24: 15 | AX24: 14 | AY24: 16 | AZ24: 16 | BA24: 16 | BB24: 16 | BC24: 20 | BD24: 14 | BE24: 18 | BF24: 16 | BG24: 16 | BH24: 18 | BI24: 18 | BJ24: 16 | BK24: 14 | BL24: 16 | BM24: 18 | BN24: 16 | BO24: 16 | BP24: 18 | BQ24: 16 | BR24: 12 | BS24: 14 | BT24: 18 | BU24: 18 | BV24: 14 | BW24: 14 | BX24: 18 | BY24: 14 | BZ24: 16
C25: Güllefass (1/3) | D25: 10.02.xxxx | E25: 5400 | F25: 18 | G25: 300 | H25: 300 | I25: 5100 | J25: 4800 | N25: 1 | P25: Güllefass (1/3) | Q25: 5400 | R25: 4860 | S25: 5508 | T25: 5724 | U25: 5238 | V25: 5184 | W25: 6588 | X25: 4590 | Y25: 5832 | Z25: 5562 | AA25: 5292 | AB25: 6426 | AC25: 5778 | AD25: 5670 | AE25: 4536 | AF25: 5076 | AG25: 6048 | AH25: 5130 | AI25: 5724 | AJ25: 5832 | AK25: 5616 | AL25: 4320 | AM25: 5022 | AN25: 5886 | AO25: 6210 | AP25: 4428 | AQ25: 4806 | AR25: 6318 | AS25: 4860 | AT25: 5076 | AV25: Güllefass (1/3) | AW25: 18 | AX25: 18 | AY25: 20 | AZ25: 20 | BA25: 18 | BB25: 18 | BC25: 22 | BD25: 16 | BE25: 20 | BF25: 20 | BG25: 18 | BH25: 22 | BI25: 20 | BJ25: 20 | BK25: 16 | BL25: 18 | BM25: 22 | BN25: 18 | BO25: 20 | BP25: 20 | BQ25: 20 | BR25: 16 | BS25: 18 | BT25: 20 | BU25: 22 | BV25: 16 | BW25: 18 | BX25: 22 | BY25: 18 | BZ25: 18
C26: Melktechnik | D26: 23.04.xxxx | E26: 25500 | F26: 15 | G26: 0 | H26: 25500 | I26: 0 | J26: 0 | N26: =F26 -> 15 | P26: Melktechnik | Q26: 25500 | R26: 22950 | S26: 26010 | T26: 27030 | U26: 24735 | V26: 24480 | W26: 31110 | X26: 21675 | Y26: 27540 | Z26: 26265 | AA26: 24990 | AB26: 30345 | AC26: 27285 | AD26: 26775 | AE26: 21420 | AF26: 23970 | AG26: 28560 | AH26: 24225 | AI26: 27030 | AJ26: 27540 | AK26: 26520 | AL26: 20400 | AM26: 23715 | AN26: 27795 | AO26: 29325 | AP26: 20910 | AQ26: 22695 | AR26: 29835 | AS26: 22950 | AT26: 23970 | AV26: Melktechnik | AW26: 15 | AX26: 14 | AY26: 16 | AZ26: 16 | BA26: 16 | BB26: 16 | BC26: 20 | BD26: 14 | BE26: 18 | BF26: 16 | BG26: 16 | BH26: 18 | BI26: 18 | BJ26: 16 | BK26: 14 | BL26: 16 | BM26: 18 | BN26: 16 | BO26: 16 | BP26: 18 | BQ26: 16 | BR26: 12 | BS26: 14 | BT26: 18 | BU26: 18 | BV26: 14 | BW26: 14 | BX26: 18 | BY26: 14 | BZ26: 16
C27: Kippanhänger | D27: 12.05.xxxx | E27: 2400 | F27: 20 | G27: 120 | H27: 600 | I27: 1800 | J27: 1680 | N27: 5 | P27: Kippanhänger | Q27: 2400 | R27: 2160 | S27: 2440 | T27: 2540 | U27: 2320 | V27: 2300 | W27: 2920 | X27: 2040 | Y27: 2600 | Z27: 2480 | AA27: 2360 | AB27: 2860 | AC27: 2560 | AD27: 2520 | AE27: 2020 | AF27: 2260 | AG27: 2680 | AH27: 2280 | AI27: 2540 | AJ27: 2600 | AK27: 2500 | AL27: 1920 | AM27: 2240 | AN27: 2620 | AO27: 2760 | AP27: 1960 | AQ27: 2140 | AR27: 2800 | AS27: 2160 | AT27: 2260 | AV27: Kippanhänger | AW27: 20 | AX27: 18 | AY27: 22 | AZ27: 22 | BA27: 20 | BB27: 20 | BC27: 26 | BD27: 18 | BE27: 22 | BF27: 22 | BG27: 20 | BH27: 24 | BI27: 22 | BJ27: 22 | BK27: 18 | BL27: 20 | BM27: 24 | BN27: 20 | BO27: 22 | BP27: 22 | BQ27: 22 | BR27: 16 | BS27: 20 | BT27: 22 | BU27: 24 | BV27: 18 | BW27: 18 | BX27: 24 | BY27: 18 | BZ27: 20
C28: Neuer Ladewagen | D28: 02.03.xxxx | E28: 25000 | F28: 15 | G28: 1666.666667 | H28: 0 | I28: 0 | J28: 23333.33333 | N28: 0 | P28: Neuer Ladewagen | Q28: 25000 | R28: 22500 | S28: 25500 | T28: 26505 | U28: 24255 | V28: 24000 | W28: 30495 | X28: 21255 | Y28: 27000 | Z28: 25755 | AA28: 24495 | AB28: 29745 | AC28: 26745 | AD28: 26250 | AE28: 21000 | AF28: 23505 | AG28: 28005 | AH28: 23745 | AI28: 26505 | AJ28: 27000 | AK28: 25995 | AL28: 19995 | AM28: 23250 | AN28: 27255 | AO28: 28755 | AP28: 20505 | AQ28: 22245 | AR28: 29250 | AS28: 22500 | AT28: 23505 | AV28: Neuer Ladewagen | AW28: 15 | AX28: 14 | AY28: 16 | AZ28: 16 | BA28: 16 | BB28: 16 | BC28: 20 | BD28: 14 | BE28: 18 | BF28: 16 | BG28: 16 | BH28: 18 | BI28: 18 | BJ28: 16 | BK28: 14 | BL28: 16 | BM28: 18 | BN28: 16 | BO28: 16 | BP28: 18 | BQ28: 16 | BR28: 12 | BS28: 14 | BT28: 18 | BU28: 18 | BV28: 14 | BW28: 14 | BX28: 18 | BY28: 14 | BZ28: 16
C29: Abschreibung | E29: =SUM(E18:E28) -> 202106 | G29: =SUM(G18:G28) -> 6799.666667
C30: Buchwerte | I30: =SUM(I18:I28) -> 88500 | J30: =SUM(J18:J28) -> 106700.3333 | L30: Version 2020.11.23.006

Sheet BUCHUNGSSÄTZE
C1: Buchungssätze | G1: Gruppe: | H1: =ANLAGENVERZEICHNISSE!J1 -> 1
C3: Laufende Buchungen | M3: 1 | N3: 2 | O3: 3 | P3: 4 | Q3: 5 | R3: 6 | S3: 7 | T3: 8 | U3: 9 | V3: 10 | W3: 11 | X3: 12 | Y3: 13 | Z3: 14 | AA3: 15 | AB3: 16 | AC3: 17 | AD3: 18 | AE3: 19 | AF3: 20 | AG3: 21 | AH3: 22 | AI3: 23 | AJ3: 24 | AK3: 25 | AL3: 26 | AM3: 27 | AN3: 28 | AO3: 29 | AP3: 30
C4: Datum | D4: Nr. | E4: Text | F4: Soll | G4: Haben | H4: Betrag | M4: Hauptvariante | N4: =ANLAGENVERZEICHNISSE!R7 -> -0.1 | O4: =ANLAGENVERZEICHNISSE!S7 -> 0.02 | P4: =ANLAGENVERZEICHNISSE!T7 -> 0.06 | Q4: =ANLAGENVERZEICHNISSE!U7 -> -0.03 | R4: =ANLAGENVERZEICHNISSE!V7 -> -0.04 | S4: =ANLAGENVERZEICHNISSE!W7 -> 0.22 | T4: =ANLAGENVERZEICHNISSE!X7 -> -0.15 | U4: =ANLAGENVERZEICHNISSE!Y7 -> 0.08 | V4: =ANLAGENVERZEICHNISSE!Z7 -> 0.03 | W4: =ANLAGENVERZEICHNISSE!AA7 -> -0.02 | X4: =ANLAGENVERZEICHNISSE!AB7 -> 0.19 | Y4: =ANLAGENVERZEICHNISSE!AC7 -> 0.07 | Z4: =ANLAGENVERZEICHNISSE!AD7 -> 0.05 | AA4: =ANLAGENVERZEICHNISSE!AE7 -> -0.16 | AB4: =ANLAGENVERZEICHNISSE!AF7 -> -0.06 | AC4: =ANLAGENVERZEICHNISSE!AG7 -> 0.12 | AD4: =ANLAGENVERZEICHNISSE!AH7 -> -0.05 | AE4: =ANLAGENVERZEICHNISSE!AI7 -> 0.06 | AF4: =ANLAGENVERZEICHNISSE!AJ7 -> 0.08 | AG4: =ANLAGENVERZEICHNISSE!AK7 -> 0.04 | AH4: =ANLAGENVERZEICHNISSE!AL7 -> -0.2 | AI4: =ANLAGENVERZEICHNISSE!AM7 -> -0.07 | AJ4: =ANLAGENVERZEICHNISSE!AN7 -> 0.09 | AK4: =ANLAGENVERZEICHNISSE!AO7 -> 0.15 | AL4: =ANLAGENVERZEICHNISSE!AP7 -> -0.18 | AM4: =ANLAGENVERZEICHNISSE!AQ7 -> -0.11 | AN4: =ANLAGENVERZEICHNISSE!AR7 -> 0.17 | AO4: =ANLAGENVERZEICHNISSE!AS7 -> -0.1 | AP4: =ANLAGENVERZEICHNISSE!AT7 -> -0.06
C5: xx.xx.xxxx | D5: 1 | E5: Kauf eines Ladewagens über Giro | F5: Maschinen | G5: Giro | H5: =ANLAGENVERZEICHNISSE!E28 -> 25000
C6: xx.xx.xxxx | D6: 2 | E6: Umschuldung: kurzfristiger Kredit wird (teilweise) durch langfristigen getilgt | F6: Kurzfr. Kredit | G6: Langfr. Kredit | H6: =IF(TYPE(VLOOKUP($E6,$L$3:$AP$35,$H$1+1,0))=16,"",VLOOKUP($E6,$L$3:$AP$35,$H$1+1,0)) -> 40000 | L6: =E6 -> Umschuldung: kurzfristiger Kredit wird (teilweise) durch langfristigen getilgt | M6: =BUCHFÜHRUNG!K14 -> 40000 | N6: =ROUND($M6+$M6*N$4,0) -> 36000 | O6: 40800 | P6: 42400 | Q6: 38800 | R6: 38400 | S6: 48800 | T6: 34000 | U6: 43200 | V6: 41200 | W6: 39200 | X6: 47600 | Y6: 42800 | Z6: 42000 | AA6: 33600 | AB6: 37600 | AC6: 44800 | AD6: =ROUND($M6+$M6*AD$4,0) -> 38000 | AE6: 42400 | AF6: 43200 | AG6: 41600 | AH6: 32000 | AI6: 37200 | AJ6: 43600 | AK6: 46000 | AL6: 32800 | AM6: 35600 | AN6: 46800 | AO6: 36000 | AP6: 37600
C7: xx.xx.xxxx | D7: 3 | E7: Kredittilgung (langfristiger Kredit) über Giro | F7: Langfr. Kredit | G7: Giro | H7: 8500 | L7: Kredittilgung (langfristiger Kredit) über Giro | M7: 8500 | N7: 7650 | O7: 8670 | P7: 9010 | Q7: 8245 | R7: 8160 | S7: 10370 | T7: 7225 | U7: 9180 | V7: 8755 | W7: 8330 | X7: 10115 | Y7: 9095 | Z7: 8925 | AA7: 7140 | AB7: 7990 | AC7: 9520 | AD7: 8075 | AE7: 9010 | AF7: 9180 | AG7: 8840 | AH7: 6800 | AI7: 7905 | AJ7: 9265 | AK7: 9775 | AL7: 6970 | AM7: 7565 | AN7: 9945 | AO7: 7650 | AP7: 7990
C8: xx.xx.xxxx | D8: 4 | E8: Aufwand für Betriebsmittel der Bodennutzung über Giro | F8: Bodennutzung | G8: Giro | H8: 4500 | L8: Aufwand für Betriebsmittel der Bodennutzung über Giro | M8: 4500 | N8: 4050 | O8: 4590 | P8: 4770 | Q8: 4365 | R8: 4320 | S8: 5490 | T8: 3825 | U8: 4860 | V8: 4635 | W8: 4410 | X8: 5355 | Y8: 4815 | Z8: 4725 | AA8: 3780 | AB8: 4230 | AC8: 5040 | AD8: 4275 | AE8: 4770 | AF8: 4860 | AG8: 4680 | AH8: 3600 | AI8: 4185 | AJ8: 4905 | AK8: 5175 | AL8: 3690 | AM8: 4005 | AN8: 5265 | AO8: 4050 | AP8: 4230
C9: xx.xx.xxxx | D9: 5 | E9: Verkauf von Milch und Rindern über Giro | F9: Giro | G9: Milchviehhaltung | H9: 44125 | L9: Verkauf von Milch und Rindern über Giro | M9: 44125 | N9: 39713 | O9: 45008 | P9: 46773 | Q9: 42801 | R9: 42360 | S9: 53833 | T9: 37506 | U9: 47655 | V9: 45449 | W9: 43243 | X9: 52509 | Y9: 47214 | Z9: 46331 | AA9: 37065 | AB9: 41478 | AC9: 49420 | AD9: 41919 | AE9: 46773 | AF9: 47655 | AG9: 45890 | AH9: 35300 | AI9: 41036 | AJ9: 48096 | AK9: 50744 | AL9: 36183 | AM9: 39271 | AN9: 51626 | AO9: 39713 | AP9: 41478
C10: xx.xx.xxxx | D10: 6 | E10: Private Einkäufe bar bezahlt | F10: Privat | G10: Kassa | H10: 22150 | L10: Private Einkäufe bar bezahlt | M10: 22150 | N10: 19935 | O10: 22593 | P10: 23479 | Q10: 21486 | R10: 21264 | S10: 27023 | T10: 18828 | U10: 23922 | V10: 22815 | W10: 21707 | X10: 26359 | Y10: 23701 | Z10: 23258 | AA10: 18606 | AB10: 20821 | AC10: 24808 | AD10: 21043 | AE10: 23479 | AF10: 23922 | AG10: 23036 | AH10: 17720 | AI10: 20600 | AJ10: 24144 | AK10: 25473 | AL10: 18163 | AM10: 19714 | AN10: 25916 | AO10: 19935 | AP10: 20821
C11: xx.xx.xxxx | D11: 7 | E11: Erhalt der Familienbeihilfe über Giro | F11: Giro | G11: Privat | H11: 650 | L11: Erhalt der Familienbeihilfe über Giro | M11: 650 | N11: 585 | O11: 663 | P11: 689 | Q11: 631 | R11: 624 | S11: 793 | T11: 553 | U11: 702 | V11: 670 | W11: 637 | X11: 774 | Y11: 696 | Z11: 683 | AA11: 546 | AB11: 611 | AC11: 728 | AD11: 618 | AE11: 689 | AF11: 702 | AG11: 676 | AH11: 520 | AI11: 605 | AJ11: 709 | AK11: 748 | AL11: 533 | AM11: 579 | AN11: 761 | AO11: 585 | AP11: 611
C12: xx.xx.xxxx | D12: 8 | E12: Einnahmen im Rahmen von Urlaub am Bauernhof, bar | F12: Kassa | G12: Ertrag UaB | H12: 25000 | L12: Einnahmen im Rahmen von Urlaub am Bauernhof, bar | M12: 25000 | N12: 22500 | O12: 25500 | P12: 26500 | Q12: 24250 | R12: 24000 | S12: 30500 | T12: 21250 | U12: 27000 | V12: 25750 | W12: 24500 | X12: 29750 | Y12: 26750 | Z12: 26250 | AA12: 21000 | AB12: 23500 | AC12: 28000 | AD12: 23750 | AE12: 26500 | AF12: 27000 | AG12: 26000 | AH12: 20000 | AI12: 23250 | AJ12: 27250 | AK12: 28750 | AL12: 20500 | AM12: 22250 | AN12: 29250 | AO12: 22500 | AP12: 23500
C13: xx.xx.xxxx | D13: 9 | E13: Aufwendungen für Tierhaltung, UaB und Verwaltung, Giro | F13: Aufw. Tiere, UaB, Verwaltung | G13: Giro | H13: 25000 | L13: Aufwendungen für Tierhaltung, UaB und Verwaltung, Giro | M13: 25000 | N13: 22500 | O13: 25500 | P13: 26500 | Q13: 24250 | R13: 24000 | S13: 30500 | T13: 21250 | U13: 27000 | V13: 25750 | W13: 24500 | X13: 29750 | Y13: 26750 | Z13: 26250 | AA13: 21000 | AB13: 23500 | AC13: 28000 | AD13: 23750 | AE13: 26500 | AF13: 27000 | AG13: 26000 | AH13: 20000 | AI13: 23250 | AJ13: 27250 | AK13: 28750 | AL13: 20500 | AM13: 22250 | AN13: 29250 | AO13: 22500 | AP13: 23500
C14: xx.xx.xxxx | D14: 10 | E14: Bezahlung von Schuldzinsen über Giro | F14: Schuldzinsen | G14: Giro | H14: 1100 | L14: Bezahlung von Schuldzinsen über Giro | M14: 1100 | N14: 990 | O14: 1122 | P14: 1166 | Q14: 1067 | R14: 1056 | S14: 1342 | T14: 935 | U14: 1188 | V14: 1133 | W14: 1078 | X14: 1309 | Y14: 1177 | Z14: 1155 | AA14: 924 | AB14: 1034 | AC14: 1232 | AD14: 1045 | AE14: 1166 | AF14: 1188 | AG14: =ROUND($M14+$M14*AG$4,0) -> 1144 | AH14: 880 | AI14: 1023 | AJ14: 1199 | AK14: 1265 | AL14: 902 | AM14: 979 | AN14: 1287 | AO14: 990 | AP14: 1034
C15: xx.xx.xxxx | D15: 11 | E15: Ertrag durch Mastviehverkäufe über Giro | F15: Giro | G15: Mastvieh | H15: 7450 | L15: Ertrag durch Mastviehverkäufe über Giro | M15: 7450 | N15: 6705 | O15: 7599 | P15: 7897 | Q15: 7227 | R15: 7152 | S15: 9089 | T15: 6333 | U15: 8046 | V15: 7674 | W15: 7301 | X15: 8866 | Y15: 7972 | Z15: 7823 | AA15: 6258 | AB15: 7003 | AC15: 8344 | AD15: 7078 | AE15: 7897 | AF15: 8046 | AG15: 7748 | AH15: 5960 | AI15: 6929 | AJ15: 8121 | AK15: 8568 | AL15: 6109 | AM15: 6631 | AN15: 8717 | AO15: 6705 | AP15: 7003
C16: xx.xx.xxxx | D16: 12 | E16: Forderungen vom Vorjahr werden über Giro überwiesen | F16: Giro | G16: Forderungen | H16: 14800 | L16: Forderungen vom Vorjahr werden über Giro überwiesen | M16: 14800 | N16: 13320 | O16: 15096 | P16: 15688 | Q16: 14356 | R16: 14208 | S16: 18056 | T16: 12580 | U16: 15984 | V16: 15244 | W16: 14504 | X16: 17612 | Y16: 15836 | Z16: 15540 | AA16: 12432 | AB16: 13912 | AC16: 16576 | AD16: 14060 | AE16: 15688 | AF16: 15984 | AG16: 15392 | AH16: 11840 | AI16: 13764 | AJ16: 16132 | AK16: 17020 | AL16: 12136 | AM16: 13172 | AN16: 17316 | AO16: 13320 | AP16: 13912
C17: xx.xx.xxxx | D17: 13 | E17: Bezahlung der Stromrechnung über Giro | F17: Strom | G17: Giro | H17: 1850 | L17: Bezahlung der Stromrechnung über Giro | M17: 1850 | N17: 1665 | O17: 1887 | P17: 1961 | Q17: 1795 | R17: 1776 | S17: 2257 | T17: 1573 | U17: 1998 | V17: 1906 | W17: 1813 | X17: 2202 | Y17: 1980 | Z17: 1943 | AA17: 1554 | AB17: 1739 | AC17: 2072 | AD17: 1758 | AE17: 1961 | AF17: 1998 | AG17: 1924 | AH17: 1480 | AI17: 1721 | AJ17: 2017 | AK17: 2128 | AL17: 1517 | AM17: 1647 | AN17: 2165 | AO17: 1665 | AP17: 1739
C19: Vorbereitende Jahresabschlussbuchungen
C20: Verbuchung der AfA
C21: Datum | D21: Beleg Nr. | E21: Text | F21: Soll | G21: Haben | H21: Betrag
C22: 31.12.xxxx | D22: =+D17+1 -> 14 | E22: AfA Wirtschaftsgebäude | F22: AfA | G22: Gebäude | H22: =+ANLAGENVERZEICHNISSE!G13 -> 11300
C23: 31.12.xxxx | D23: =+D22+1 -> 15 | E23: AfA Maschinen | F23: AfA | G23: Maschinen | H23: =+ANLAGENVERZEICHNISSE!G29 -> 6799.666667
C25: Abgrenzung Betrieb und Privat
C26: Datum | D26: Beleg Nr. | E26: Text | F26: Soll | G26: Haben | H26: Betrag
C27: 31.12.xxxx | D27: =+D23+1 -> 16 | E27: ="Aufteilung der Stromkosten: "&IF(TYPE(VLOOKUP($L27,$L$3:$AP$35,$H$1+1,0))=16,"",TEXT(VLOOKUP($L27,$L$3:$AP$35,$H$1+1,0),"0%")&" Betrieb, "&TEXT(1-IF(TYPE(VLOOKUP($L27,$L$3:$AP$35,$H$1+1,0))=16,"",VLOOKUP($L27,$L$3:$AP$35,$H$1+1,0)),"0%"))&" Privat" -> Aufteilung der Stromkosten: 20% Betrieb, 80% Privat | F27: Privat | G27: Strom | H27: =H17*IF(TYPE(VLOOKUP($L27,$L$3:$AP$35,$H$1+1,0))=16,"",VLOOKUP($L27,$L$3:$AP$35,$H$1+1,0)) -> 370 | L27: Aufteilung der Stromkosten: Betrieb, Privat | M27: 0.2 | N27: =ROUND($M27+$M27*N$4,2) -> 0.18 | O27: =ROUND($M27+$M27*O$4,2) -> 0.2 | P27: 0.21 | Q27: 0.19 | R27: 0.19 | S27: 0.24 | T27: 0.17 | U27: 0.22 | V27: 0.21 | W27: 0.2 | X27: 0.24 | Y27: 0.21 | Z27: 0.21 | AA27: 0.17 | AB27: 0.19 | AC27: 0.22 | AD27: 0.19 | AE27: 0.21 | AF27: 0.22 | AG27: 0.21 | AH27: 0.16 | AI27: 0.19 | AJ27: 0.22 | AK27: 0.23 | AL27: 0.16 | AM27: 0.18 | AN27: 0.23 | AO27: 0.18 | AP27: 0.19
C29: Buchung von Naturallieferungen
C30: Datum | D30: Beleg Nr. | E30: Text | F30: Soll | G30: Haben | H30: Betrag
C31: 31.12.xxxx | D31: 17 | E31: Milch an den Haushalt | F31: Privat | G31: Ertrag Milch | H31: =IF(TYPE(VLOOKUP($E31,$L$3:$AP$35,$H$1+1,0))=16,"",VLOOKUP($E31,$L$3:$AP$35,$H$1+1,0)) -> 165 | L31: =E31 -> Milch an den Haushalt | M31: 165 | N31: =ROUND($M31+$M31*N$4,0) -> 149 | O31: 168 | P31: 175 | Q31: 160 | R31: 158 | S31: 201 | T31: 140 | U31: 178 | V31: 170 | W31: 162 | X31: 196 | Y31: 177 | Z31: 173 | AA31: 139 | AB31: 155 | AC31: 185 | AD31: 157 | AE31: 175 | AF31: 178 | AG31: 172 | AH31: 132 | AI31: 153 | AJ31: 180 | AK31: 190 | AL31: 135 | AM31: 147 | AN31: 193 | AO31: 149 | AP31: 155
C33: Buchung von Bestandesveränderungen
C34: Datum | D34: Beleg Nr. | E34: Text | F34: Soll | G34: Haben | H34: Betrag
C35: 31.12.xxxx | D35: 18 | E35: =IF(VLOOKUP($L35,$L$3:$AP$35,$H$1+1,0)<0,"Minderwert Viehvermögen","Mehrwert Viehvermögen") -> Minderwert Viehvermögen | F35: =IF(VLOOKUP($L35,$L$3:$AP$35,$H$1+1,0)<0,"Ertrag Mastvieh","Viehvermögen") -> Ertrag Mastvieh | G35: =IF(VLOOKUP($L35,$L$3:$AP$35,$H$1+1,0)>0,"Ertrag Mastvieh","Viehvermögen") -> Viehvermögen | H35: =IF(TYPE(VLOOKUP($L35,$L$3:$AP$35,$H$1+1,0))=16,"",IF(VLOOKUP($L35,$L$3:$AP$35,$H$1+1,0)<0,-VLOOKUP($L35,$L$3:$AP$35,$H$1+1,0),VLOOKUP($L35,$L$3:$AP$35,$H$1+1,0))) -> 1550 | L35: Veränderung Vienvermögen | M35: -1550 | N35: =ROUND($M35+$M35*N$4,0) -> -1395 | O35: =-ROUND($M35+$M35*O$4,0) -> 1581 | P35: -1643 | Q35: -1504 | R35: =-ROUND($M35+$M35*R$4,0) -> 1488 | S35: -1891 | T35: -1318 | U35: -1674 | V35: -1597 | W35: -1519 | X35: -1845 | Y35: -1659 | Z35: -1628 | AA35: =-ROUND($M35+$M35*AA$4,0) -> 1302 | AB35: =-ROUND($M35+$M35*AB$4,0) -> 1457 | AC35: 1736 | AD35: 1473 | AE35: -1643 | AF35: -1674 | AG35: -1612 | AH35: -1240 | AI35: -1442 | AJ35: -1690 | AK35: -1783 | AL35: -1271 | AM35: -1380 | AN35: -1814 | AO35: -1395 | AP35: =-ROUND($M35+$M35*AP$4,0) -> 1457

Sheet BUCHFÜHRUNG
C1: Buchführung | E1: Gruppe: | F1: =ANLAGENVERZEICHNISSE!J1 -> 1
C3: Evidenzkonten | K3: 1 | L3: 2 | M3: 3 | N3: 4 | O3: 5 | P3: 6 | Q3: 7 | R3: 8 | S3: 9 | T3: 10 | U3: 11 | V3: 12 | W3: 13 | X3: 14 | Y3: 15 | Z3: 16 | AA3: 17 | AB3: 18 | AC3: 19 | AD3: 20 | AE3: 21 | AF3: 22 | AG3: 23 | AH3: 24 | AI3: 25 | AJ3: 26 | AK3: 27 | AL3: 28 | AM3: 29 | AN3: 30
C4: Eröffnungsbilanz zum 01.01.xxxx | J4: 1.1.xxxx | K4: Hauptvariante | L4: =ANLAGENVERZEICHNISSE!R7 -> -0.1 | M4: =ANLAGENVERZEICHNISSE!S7 -> 0.02 | N4: =ANLAGENVERZEICHNISSE!T7 -> 0.06 | O4: =ANLAGENVERZEICHNISSE!U7 -> -0.03 | P4: =ANLAGENVERZEICHNISSE!V7 -> -0.04 | Q4: =ANLAGENVERZEICHNISSE!W7 -> 0.22 | R4: =ANLAGENVERZEICHNISSE!X7 -> -0.15 | S4: =ANLAGENVERZEICHNISSE!Y7 -> 0.08 | T4: =ANLAGENVERZEICHNISSE!Z7 -> 0.03 | U4: =ANLAGENVERZEICHNISSE!AA7 -> -0.02 | V4: =ANLAGENVERZEICHNISSE!AB7 -> 0.19 | W4: =ANLAGENVERZEICHNISSE!AC7 -> 0.07 | X4: =ANLAGENVERZEICHNISSE!AD7 -> 0.05 | Y4: =ANLAGENVERZEICHNISSE!AE7 -> -0.16 | Z4: =ANLAGENVERZEICHNISSE!AF7 -> -0.06 | AA4: =ANLAGENVERZEICHNISSE!AG7 -> 0.12 | AB4: =ANLAGENVERZEICHNISSE!AH7 -> -0.05 | AC4: =ANLAGENVERZEICHNISSE!AI7 -> 0.06 | AD4: =ANLAGENVERZEICHNISSE!AJ7 -> 0.08 | AE4: =ANLAGENVERZEICHNISSE!AK7 -> 0.04 | AF4: =ANLAGENVERZEICHNISSE!AL7 -> -0.2 | AG4: =ANLAGENVERZEICHNISSE!AM7 -> -0.07 | AH4: =ANLAGENVERZEICHNISSE!AN7 -> 0.09 | AI4: =ANLAGENVERZEICHNISSE!AO7 -> 0.15 | AJ4: =ANLAGENVERZEICHNISSE!AP7 -> -0.18 | AK4: =ANLAGENVERZEICHNISSE!AQ7 -> -0.11 | AL4: =ANLAGENVERZEICHNISSE!AR7 -> 0.17 | AM4: =ANLAGENVERZEICHNISSE!AS7 -> -0.1 | AN4: =ANLAGENVERZEICHNISSE!AT7 -> -0.06
C5: Gebäude und baul. Anlagen | D5: =ANLAGENVERZEICHNISSE!I14 -> 134400 | E5: Eigenkapital | F5: =SUM(D5:D11)-SUM(F6:F11) -> 185049.6
C6: Maschinen und Geräte | D6: =ANLAGENVERZEICHNISSE!I30 -> 88500 | E6: Langfristiger Kredit | F6: =IF(TYPE(VLOOKUP($E6,$J$3:$AN$14,$F$1+1,0))=16,"",VLOOKUP($E6,$J$3:$AN$14,$F$1+1,0)) -> 50000
C7: Bestand Vieh | D7: =IF(TYPE(VLOOKUP($C7,$J$3:$AN$14,$F$1+1,0))=16,"",VLOOKUP($C7,$J$3:$AN$14,$F$1+1,0)) -> 33550 | E7: Kurzfristiger Kredit | F7: =IF(TYPE(VLOOKUP($E7,$J$3:$AN$14,$F$1+1,0))=16,"",VLOOKUP($E7,$J$3:$AN$14,$F$1+1,0)) -> 40000 | J7: =C7 -> Bestand Vieh | K7: 33550 | L7: =ROUND($K7+$K7*L$4,0) -> 30195 | M7: =ROUND($K7+$K7*M$4,0) -> 34221 | N7: 35563 | O7: 32544 | P7: 32208 | Q7: 40931 | R7: 28518 | S7: 36234 | T7: 34557 | U7: 32879 | V7: 39925 | W7: 35899 | X7: 35228 | Y7: 28182 | Z7: 31537 | AA7: 37576 | AB7: 31873 | AC7: 35563 | AD7: 36234 | AE7: 34892 | AF7: 26840 | AG7: 31202 | AH7: 36570 | AI7: 38583 | AJ7: 27511 | AK7: 29860 | AL7: 39254 | AM7: 30195 | AN7: 31537
C8: Zugekaufte Vorräte | D8: =IF(TYPE(VLOOKUP($C8,$J$3:$AN$14,$F$1+1,0))=16,"",VLOOKUP($C8,$J$3:$AN$14,$F$1+1,0)) -> 1249.6 | J8: =C8 -> Zugekaufte Vorräte | K8: 1249.6 | L8: =ROUND($K8+$K8*L$4,0) -> 1125 | M8: 1275 | N8: 1325 | O8: 1212 | P8: 1200 | Q8: 1525 | R8: 1062 | S8: 1350 | T8: 1287 | U8: 1225 | V8: 1487 | W8: 1337 | X8: 1312 | Y8: 1050 | Z8: 1175 | AA8: 1400 | AB8: 1187 | AC8: 1325 | AD8: 1350 | AE8: 1300 | AF8: 1000 | AG8: 1162 | AH8: 1362 | AI8: 1437 | AJ8: 1025 | AK8: 1112 | AL8: 1462 | AM8: 1125 | AN8: 1175
C9: Forderungen (Div. KK) | D9: 14800 | J9: =C9 -> Forderungen (Div. KK) | K9: 14800 | L9: 13320 | M9: 15096 | N9: 15688 | O9: 14356 | P9: 14208 | Q9: 18056 | R9: 12580 | S9: 15984 | T9: 15244 | U9: 14504 | V9: 17612 | W9: 15836 | X9: 15540 | Y9: 12432 | Z9: 13912 | AA9: 16576 | AB9: 14060 | AC9: 15688 | AD9: 15984 | AE9: 15392 | AF9: 11840 | AG9: 13764 | AH9: 16132 | AI9: 17020 | AJ9: 12136 | AK9: 13172 | AL9: 17316 | AM9: 13320 | AN9: 13912
C10: Girokonto | D10: 2300 | J10: =C10 -> Girokonto | K10: 2300 | L10: 2070 | M10: 2346 | N10: 2438 | O10: 2231 | P10: 2208 | Q10: 2806 | R10: 1955 | S10: 2484 | T10: 2369 | U10: 2254 | V10: 2737 | W10: 2461 | X10: 2415 | Y10: 1932 | Z10: 2162 | AA10: 2576 | AB10: 2185 | AC10: 2438 | AD10: 2484 | AE10: 2392 | AF10: 1840 | AG10: 2139 | AH10: 2507 | AI10: 2645 | AJ10: 1886 | AK10: 2047 | AL10: 2691 | AM10: 2070 | AN10: 2162
C11: Kassa | D11: 250 | J11: =C11 -> Kassa | K11: 250 | L11: 225 | M11: 255 | N11: 265 | O11: 243 | P11: 240 | Q11: 305 | R11: 213 | S11: 270 | T11: 258 | U11: 245 | V11: 298 | W11: 268 | X11: 263 | Y11: 210 | Z11: 235 | AA11: 280 | AB11: 238 | AC11: 265 | AD11: 270 | AE11: 260 | AF11: 200 | AG11: 233 | AH11: 273 | AI11: 288 | AJ11: 205 | AK11: 223 | AL11: 293 | AM11: 225 | AN11: 235
C12: Aktiva | D12: =SUM(D5:D11) -> 275049.6 | E12: Passiva | F12: =SUM(F5:F11) -> 275049.6
J13: =E6 -> Langfristiger Kredit | K13: 50000 | L13: 45000 | M13: 51000 | N13: 53000 | O13: 48500 | P13: 48000 | Q13: 61000 | R13: 42500 | S13: 54000 | T13: 51500 | U13: 49000 | V13: 59500 | W13: 53500 | X13: 52500 | Y13: 42000 | Z13: 47000 | AA13: 56000 | AB13: 47500 | AC13: 53000 | AD13: 54000 | AE13: 52000 | AF13: 40000 | AG13: 46500 | AH13: 54500 | AI13: 57500 | AJ13: 41000 | AK13: 44500 | AL13: 58500 | AM13: 45000 | AN13: 47000
C14: Schlussbilanz zum 31.12.xxxx | J14: =E7 -> Kurzfristiger Kredit | K14: 40000 | L14: 36000 | M14: 40800 | N14: 42400 | O14: 38800 | P14: 38400 | Q14: 48800 | R14: 34000 | S14: 43200 | T14: 41200 | U14: 39200 | V14: 47600 | W14: 42800 | X14: 42000 | Y14: 33600 | Z14: 37600 | AA14: 44800 | AB14: 38000 | AC14: 42400 | AD14: 43200 | AE14: 41600 | AF14: 32000 | AG14: 37200 | AH14: 43600 | AI14: 46000 | AJ14: 32800 | AK14: 35600 | AL14: 46800 | AM14: 36000 | AN14: 37600
C15: Wirtschaftsgebäude | D15: =ANLAGENVERZEICHNISSE!J14 -> 123100 | E15: Eigenkapital | F15: =SUM(D15:D21)-SUM(F16:F21) -> 188024.9333
C16: Maschinen und Geräte | D16: =ANLAGENVERZEICHNISSE!J30 -> 106700.3333 | E16: Langfristiger Kredit | F16: =IF(D100<>"",D100,F100) -> 81500 | J16: 31.12.xxxx
C17: Bestand Vieh | D17: =IF(BUCHUNGSSÄTZE!E35="Mehrwert Viehvermögen",D7+BUCHUNGSSÄTZE!H35,D7-BUCHUNGSSÄTZE!H35) -> 32000 | E17: =IF(D105<>"---------------","Kurzfristiger Kredit",IF(F105<>"---------------","Kurzfristiger Kredit","")) ->  | F17: =IF(D105<>"---------------",D105,IF(F105<>"---------------",F105,"")) ->  | J17: Kurzfristiger Kredit | K17: 0 | L17: =ROUND($K17+$K17*L$4,0) -> 0 | M17: 0 | N17: 0 | O17: 0 | P17: 0 | Q17: 0 | R17: 0 | S17: 0 | T17: 0 | U17: 0 | V17: 0 | W17: 0 | X17: 0 | Y17: 0 | Z17: 0 | AA17: 0 | AB17: 0 | AC17: 0 | AD17: 0 | AE17: 0 | AF17: 0 | AG17: 0 | AH17: 0 | AI17: 0 | AJ17: 0 | AK17: 0 | AL17: 0 | AM17: 0 | AN17: 0
C18: Zugekaufte Vorräte | D18: =IF(D72<>"",D72,F72) -> 1249.6
C19: Forderungen | D19: =IF(D77<>"",D77,F77) -> --------------- | J19: =C19 -> Forderungen | K19: 0 | L19: 0 | M19: 0 | N19: 0 | O19: 0 | P19: 0 | Q19: 0 | R19: 0 | S19: 0 | T19: 0 | U19: 0 | V19: 0 | W19: 0 | X19: 0 | Y19: 0 | Z19: 0 | AA19: 0 | AB19: 0 | AC19: 0 | AD19: 0 | AE19: 0 | AF19: 0 | AG19: 0 | AH19: 0 | AI19: 0 | AJ19: 0 | AK19: 0 | AL19: 0 | AM19: 0 | AN19: 0
C20: Kassa | D20: =IF(D93<>"",D93,F93) -> 3100
C21: Girokonto | D21: =IF(D87<>"",D87,F87) -> 3375
C22: Aktiva | D22: =SUM(D15:D21) -> 269524.9333 | E22: Passiva | F22: =SUM(F15:F21) -> 269524.9333
C24: Gewinn- und Verlustrechnung | I24: G/V lt. GUV-Rechnung | J24: =D31 -> 25010.33333
C25: Bodennutzung | D25: =IF(D111<>"",D111,F111) -> 4500 | E25: Milchkuhhaltung | F25: =IF(D139<>"",D139,F139) -> 44290 | I25: =I30 -> G/V lt Bilanzvergleich
C26: Tiere, UaB, Verwaltung | D26: =IF(D116<>"",D116,F116) -> 25000 | E26: Urlaub am Bauernhof | F26: =IF(D144<>"",D144,F144) -> 25000 | I26: EK 31.12. | J26: =F15 -> 188024.9333
C27: Schuldzinsen | D27: =IF(D121<>"",D121,F121) -> 1100 | E27: Mastvieh | F27: =IF(D150<>"",D150,F150) -> 5900 | I27: - EK 1.1. | J27: =-F5 -> -185049.6
C28: Strom | D28: =IF(D126<>"",D126,F126) -> 1480 | I28: + Privarverbrauch | J28: =SUM(D35:D37) -> 22685
C29: Abschreibung Gebäude | D29: =IF(D130<>"",D130,F130) -> 11300 | I29: - Privateinlage | J29: =-SUM(F35:F37) -> -650
C30: Abschreibung Maschinen | D30: =IF(D131<>"",D131,F131) -> 6799.666667 | I30: G/V lt Bilanzvergleich | J30: =SUM(J26:J29) -> 25010.33333
C31: =IF(D31="","",IF(D31="---------------","------------------------------------------------","Saldo (Gewinn)")) -> Saldo (Gewinn) | D31: =IF(SUM(F25:F30)-SUM(D25:D30)<0,"",IF(SUM(F25:F30)=SUM(D25:D30),"---------------",SUM(F25:F30)-SUM(D25:D30))) -> 25010.33333 | E31: =IF(F31="","",IF(F31="---------------","------------------------------------------------","Saldo (Verlust)")) ->  | F31: =IF(SUM(D25:D30)-SUM(F25:F30)<0,"",IF(SUM(D25:D30)=SUM(F25:F30),"---------------",SUM(D25:D30)-SUM(F25:F30))) ->  | I31: Differenz | J31: =J24-J30 -> 0
C32: Summe | D32: =SUM(D25:D31) -> 75190 | E32: Summe | F32: =SUM(F25:F31) -> 75190
C34: Privat
C35: Privatausgaben Haushalt | D35: =F91 -> 22150 | E35: Familienbeihilfe | F35: =D83 -> 650
C36: Privatanteil (Strom) | D36: =BUCHUNGSSÄTZE!H27 -> 370
C37: Naturallieferung (Milch) | D37: =BUCHUNGSSÄTZE!H31 -> 165
C38: =IF(D38="","",IF(D38="---------------","------------------------------------------------","Saldo")) ->  | D38: =IF(SUM(F35:F37)-SUM(D35:D37)<0,"",IF(SUM(F35:F37)=SUM(D35:D37),"---------------",SUM(F35:F37)-SUM(D35:D37))) ->  | E38: =IF(F38="","",IF(F38="---------------","------------------------------------------------","Saldo")) -> Saldo | F38: =IF(SUM(D35:D37)-SUM(F35:F37)<0,"",IF(SUM(D35:D37)=SUM(F35:F37),"---------------",SUM(D35:D37)-SUM(F35:F37))) -> 22035
C39: Summe | D39: =SUM(D35:D38) -> 22685 | E39: Summe | F39: =SUM(F35:F38) -> 22685
C41: Eigenkapital
C42: Privatentnahmen | D42: =F38 -> 22035 | E42: AB | F42: =F5 -> 185049.6
C43: =IF(D43="","","Verlust") ->  | D43: =IF(F31="","",F31) ->  | E43: =IF(F43="","","Gewinn") -> Gewinn | F43: =IF(D31="","",D31) -> 25010.33333
C44: =IF(D44="","",IF(D44="---------------","------------------------------------------------","Saldo")) -> Saldo | D44: =IF(SUM(F42:F43)-SUM(D42:D43)<0,"",IF(SUM(F42:F43)=SUM(D42:D43),"---------------",SUM(F42:F43)-SUM(D42:D43))) -> 188024.9333 | E44: =IF(F44="","",IF(F44="---------------","------------------------------------------------","Saldo")) ->  | F44: =IF(SUM(D42:D43)-SUM(F42:F43)<0,"",IF(SUM(D42:D43)=SUM(F42:F43),"---------------",SUM(D42:D43)-SUM(F42:F43))) -> 
C45: Aktiva | D45: =SUM(D42:D44) -> 210059.9333 | E45: Passiva | F45: =SUM(F42:F43) -> 210059.9333
C47: Weitere Angaben
C48: Lohnansatz | D48: =IF(TYPE(VLOOKUP($C48,$J$3:$AN$49,$F$1+1,0))=16,"",VLOOKUP($C48,$J$3:$AN$49,$F$1+1,0)) -> 21297 | E48: Euro | J48: =C48 -> Lohnansatz | K48: 21297 | L48: =ROUND($K48+$K48*L$4,0) -> 19167 | M48: 21723 | N48: 22575 | O48: 20658 | P48: 20445 | Q48: 25982 | R48: 18102 | S48: 23001 | T48: 21936 | U48: 20871 | V48: 25343 | W48: 22788 | X48: 22362 | Y48: 17889 | Z48: 20019 | AA48: 23853 | AB48: 20232 | AC48: 22575 | AD48: 23001 | AE48: 22149 | AF48: 17038 | AG48: 19806 | AH48: 23214 | AI48: 24492 | AJ48: 17464 | AK48: 18954 | AL48: 24917 | AM48: 19167 | AN48: 20019
C49: Zinssatz | D49: =IF(TYPE(VLOOKUP($C49,$J$3:$AN$49,$F$1+1,0))=16,"",VLOOKUP($C49,$J$3:$AN$49,$F$1+1,0)) -> 3.5 | E49: Prozent | F49: =-F15*D49/100 -> -6580.872667 | J49: =C49 -> Zinssatz | K49: 3.5 | L49: =ROUND($K49+$K49*L$4,1) -> 3.2 | M49: =ROUND($K49+$K49*M$4,1) -> 3.6 | N49: 3.7 | O49: 3.4 | P49: 3.4 | Q49: 4.3 | R49: 3 | S49: 3.8 | T49: 3.6 | U49: 3.4 | V49: 4.2 | W49: 3.7 | X49: 3.7 | Y49: 2.9 | Z49: 3.3 | AA49: 3.9 | AB49: 3.3 | AC49: 3.7 | AD49: 3.8 | AE49: 3.6 | AF49: 2.8 | AG49: 3.3 | AH49: 3.8 | AI49: 4 | AJ49: 2.9 | AK49: 3.1 | AL49: 4.1 | AM49: 3.2 | AN49: 3.3
C51: Buchung auf KONTEN
C52: Aktive Bestandeskonten
C53: Gebäude und bauliche Anlagen (Wirtschaftsgebäude)
C54: AB | D54: =+D5 -> 134400 | E54: AfA (Wirtschaftsgebäude) | F54: =+BUCHUNGSSÄTZE!H22 -> 11300
C55: =IF(D55="","",IF(D55="---------------","------------------------------------------------","Saldo")) ->  | D55: =IF(SUM(F54)-SUM(D54)<0,"",IF(SUM(F54)=SUM(D54),"---------------",SUM(F54)-SUM(D54))) ->  | E55: =IF(F55="","",IF(F55="---------------","------------------------------------------------","Saldo")) -> Saldo | F55: =IF(SUM(D54)-SUM(F54)<0,"",IF(SUM(D54)=SUM(F54),"---------------",SUM(D54)-SUM(F54))) -> 123100
C56: Aktiva | D56: =SUM(D54:D55) -> 134400 | E56: Passiva | F56: =D56 -> 134400
C58: Maschinen und Geräte
C59: AB | D59: =+D6 -> 88500 | E59: Afa (Maschinen) | F59: =+BUCHUNGSSÄTZE!H23 -> 6799.666667
C60: Kauf Ladewagen | D60: =BUCHUNGSSÄTZE!H5 -> 25000
C61: =IF(D61="","",IF(D61="---------------","------------------------------------------------","Saldo")) ->  | D61: =IF(SUM(F59:F60)-SUM(D59:D60)<0,"",IF(SUM(F59:F60)=SUM(D59:D60),"---------------",SUM(F59:F60)-SUM(D59:D60))) ->  | E61: =IF(F61="","",IF(F61="---------------","------------------------------------------------","Saldo")) -> Saldo | F61: =IF(SUM(D59:D60)-SUM(F59:F60)<0,"",IF(SUM(D59:D60)=SUM(F59:F60),"---------------",SUM(D59:D60)-SUM(F59:F60))) -> 106700.3333
C62: Aktiva | D62: =SUM(D59:D60) -> 113500 | E62: Passiva | F62: =D62 -> 113500
C64: Viehvermögen
C65: AB | D65: =+D7 -> 33550
C66: =IF(BUCHUNGSSÄTZE!E35="Mehrwert Viehvermögen","Mehrwert Viehvermögen","") ->  | D66: =IF(BUCHUNGSSÄTZE!E35="Mehrwert Viehvermögen",BUCHUNGSSÄTZE!H35,"") ->  | E66: =IF(BUCHUNGSSÄTZE!E35="Minderwert Viehvermögen","Minderwert Viehvermögen","") -> Minderwert Viehvermögen | F66: =IF(BUCHUNGSSÄTZE!E35="Minderwert Viehvermögen",BUCHUNGSSÄTZE!H35,"") -> 1550
C67: =IF(D67="","",IF(D67="---------------","------------------------------------------------","Saldo")) ->  | D67: =IF(SUM(F65:F66)-SUM(D65:D66)<0,"",IF(SUM(F65:F66)=SUM(D65:D66),"---------------",SUM(F65:F66)-SUM(D65:D66))) ->  | E67: =IF(F67="","",IF(F67="---------------","------------------------------------------------","Saldo")) -> Saldo | F67: =IF(SUM(D65:D66)-SUM(F65:F66)<0,"",IF(SUM(D65:D66)=SUM(F65:F66),"---------------",SUM(D65:D66)-SUM(F65:F66))) -> 32000
C68: Aktiva | D68: =SUM(D65:D66) -> 33550 | E68: Passiva | F68: =D68 -> 33550
C70: Zugekaufte Vorräte
C71: AB | D71: =+D8 -> 1249.6
C72: =IF(D72="","",IF(D72="---------------","------------------------------------------------","Saldo")) ->  | D72: =IF(SUM(F71)-SUM(D71)<0,"",IF(SUM(F71)=SUM(D71),"---------------",SUM(F71)-SUM(D71))) ->  | E72: =IF(F72="","",IF(F72="---------------","------------------------------------------------","Saldo")) -> Saldo | F72: =IF(SUM(D71)-SUM(F71)<0,"",IF(SUM(D71)=SUM(F71),"---------------",SUM(D71)-SUM(F71))) -> 1249.6
C73: Aktiva | D73: =SUM(D71) -> 1249.6 | E73: Passiva | F73: =D73 -> 1249.6
C75: Forderungen
C76: AB | D76: =+D9 -> 14800 | E76: Erhalt Forderung (Vorjahr) | F76: =+BUCHUNGSSÄTZE!H16 -> 14800
C77: =IF(D77="","",IF(D77="---------------","------------------------------------------------","Saldo")) -> ------------------------------------------------ | D77: =IF(SUM(F76)-SUM(D76)<0,"",IF(SUM(F76)=SUM(D76),"---------------",SUM(F76)-SUM(D76))) -> --------------- | E77: =IF(F77="","",IF(F77="---------------","------------------------------------------------","Saldo")) -> ------------------------------------------------ | F77: =IF(SUM(D76)-SUM(F76)<0,"",IF(SUM(D76)=SUM(F76),"---------------",SUM(D76)-SUM(F76))) -> ---------------
C78: Aktiva | D78: =SUM(D76) -> 14800 | E78: Passiva | F78: =D78 -> 14800
C80: Girokonto
C81: AB | D81: =+D10 -> 2300 | E81: Kauf Ladewagen | F81: =BUCHUNGSSÄTZE!H5 -> 25000
C82: Einnahme Milchviehhaltung | D82: =+BUCHUNGSSÄTZE!H9 -> 44125 | E82: Tilgung (langfrisitger Kredit) | F82: =+BUCHUNGSSÄTZE!H7 -> 8500
C83: Familienbeihilfe | D83: =+BUCHUNGSSÄTZE!H11 -> 650 | E83: Aufwand Bodennutzung | F83: =+BUCHUNGSSÄTZE!H8 -> 4500
C84: Mastviehverkauf | D84: =+BUCHUNGSSÄTZE!H15 -> 7450 | E84: Diverse Aufwendungen | F84: =+BUCHUNGSSÄTZE!H13 -> 25000
C85: Erhalt Forderung (Vorjahr) | D85: =+BUCHUNGSSÄTZE!H16 -> 14800 | E85: Bezahlung Schuldzinsen | F85: =+BUCHUNGSSÄTZE!H14 -> 1100
E86: Bezahlung Stromrechnung | F86: =+BUCHUNGSSÄTZE!H17 -> 1850
C87: =IF(D87="","",IF(D87="---------------","------------------------------------------------","Saldo")) ->  | D87: =IF(SUM(F81:F86)-SUM(D81:D86)<0,"",IF(SUM(F81:F86)=SUM(D81:D86),"---------------",SUM(F81:F86)-SUM(D81:D86))) ->  | E87: =IF(F87="","",IF(F87="---------------","------------------------------------------------","Saldo")) -> Saldo | F87: =IF(SUM(D81:D86)-SUM(F81:F86)<0,"",IF(SUM(D81:D86)=SUM(F81:F86),"---------------",SUM(D81:D86)-SUM(F81:F86))) -> 3375
C88: Aktiva | D88: =SUM(D81:D87) -> 69325 | E88: Passiva | F88: =D88 -> 69325
C90: Kassa
C91: AB | D91: =+D11 -> 250 | E91: Privateinkäufe | F91: =+BUCHUNGSSÄTZE!H10 -> 22150
C92: Einnahmen UaB | D92: =+BUCHUNGSSÄTZE!H12 -> 25000
C93: =IF(D93="","",IF(D93="---------------","------------------------------------------------","Saldo")) ->  | D93: =IF(SUM(F91:F92)-SUM(D91:D92)<0,"",IF(SUM(F91:F92)=SUM(D91:D92),"---------------",SUM(F91:F92)-SUM(D91:D92))) ->  | E93: =IF(F93="","",IF(F93="---------------","------------------------------------------------","Saldo")) -> Saldo | F93: =IF(SUM(D91:D92)-SUM(F91:F92)<0,"",IF(SUM(D91:D92)=SUM(F91:F92),"---------------",SUM(D91:D92)-SUM(F91:F92))) -> 3100
C94: Aktiva | D94: =SUM(D91:D92) -> 25250 | E94: Passiva | F94: =D94 -> 25250
C96: Passive Bestandeskonten
C97: Langfristige Kredit
C98: Tilgung (langfristiger Kredit) | D98: =+BUCHUNGSSÄTZE!H7 -> 8500 | E98: AB | F98: =+F6 -> 50000
E99: Umschuldung | F99: =+BUCHUNGSSÄTZE!H6 -> 40000
C100: =IF(D100="","",IF(D100="---------------","------------------------------------------------","Saldo")) -> Saldo | D100: =IF(SUM(F98:F99)-SUM(D98:D99)<0,"",IF(SUM(F98:F99)=SUM(D98:D99),"---------------",SUM(F98:F99)-SUM(D98:D99))) -> 81500 | E100: =IF(F100="","",IF(F100="---------------","------------------------------------------------","Saldo")) ->  | F100: =IF(SUM(D98:D99)-SUM(F98:F99)<0,"",IF(SUM(D98:D99)=SUM(F98:F99),"---------------",SUM(D98:D99)-SUM(F98:F99))) -> 
C101: Aktiva | D101: =F101 -> 90000 | E101: Passiva | F101: =SUM(F98:F99) -> 90000
C103: Kurzfristiger Kredit
C104: Umschuldung | D104: =+BUCHUNGSSÄTZE!H6 -> 40000 | E104: AB | F104: =+F7 -> 40000
C105: =IF(D105="","",IF(D105="---------------","------------------------------------------------","Saldo")) -> ------------------------------------------------ | D105: =IF(SUM(F104)-SUM(D104)<0,"",IF(SUM(F104)=SUM(D104),"---------------",SUM(F104)-SUM(D104))) -> --------------- | E105: =IF(F105="","",IF(F105="---------------","------------------------------------------------","Saldo")) -> ------------------------------------------------ | F105: =IF(SUM(D104)-SUM(F104)<0,"",IF(SUM(D104)=SUM(F104),"---------------",SUM(D104)-SUM(F104))) -> ---------------
C106: Aktiva | D106: =F106 -> 40000 | E106: Passiva | F106: =SUM(F104) -> 40000
C108: Aufwandskonten
C109: Bodennutzung
C110: Aufwand Bodennutzung | D110: =BUCHUNGSSÄTZE!H8 -> 4500
C111: =IF(D111="","",IF(D111="---------------","------------------------------------------------","Saldo")) ->  | D111: =IF(SUM(F110)-SUM(D110)<0,"",IF(SUM(F110)=SUM(D110),"---------------",SUM(F110)-SUM(D110))) ->  | E111: =IF(F111="","",IF(F111="---------------","------------------------------------------------","Saldo")) -> Saldo | F111: =IF(SUM(D110)-SUM(F110)<0,"",IF(SUM(D110)=SUM(F110),"---------------",SUM(D110)-SUM(F110))) -> 4500
C112: Aktiva | D112: =SUM(D110) -> 4500 | E112: Passiva | F112: =D112 -> 4500
C114: Tiere, UaB, Verwaltung
C115: Diverser Aufwendungen | D115: =BUCHUNGSSÄTZE!H13 -> 25000
C116: =IF(D116="","",IF(D116="---------------","------------------------------------------------","Saldo")) ->  | D116: =IF(SUM(F115)-SUM(D115)<0,"",IF(SUM(F115)=SUM(D115),"---------------",SUM(F115)-SUM(D115))) ->  | E116: =IF(F116="","",IF(F116="---------------","------------------------------------------------","Saldo")) -> Saldo | F116: =IF(SUM(D115)-SUM(F115)<0,"",IF(SUM(D115)=SUM(F115),"---------------",SUM(D115)-SUM(F115))) -> 25000
C117: Aktiva | D117: =SUM(D115) -> 25000 | E117: Passiva | F117: =D117 -> 25000
C119: Schuldzinsen
C120: Bezahlung Schuldzinsen | D120: =BUCHUNGSSÄTZE!H14 -> 1100
C121: =IF(D121="","",IF(D121="---------------","------------------------------------------------","Saldo")) ->  | D121: =IF(SUM(F120)-SUM(D120)<0,"",IF(SUM(F120)=SUM(D120),"---------------",SUM(F120)-SUM(D120))) ->  | E121: =IF(F121="","",IF(F121="---------------","------------------------------------------------","Saldo")) -> Saldo | F121: =IF(SUM(D120)-SUM(F120)<0,"",IF(SUM(D120)=SUM(F120),"---------------",SUM(D120)-SUM(F120))) -> 1100
C122: Aktiva | D122: =SUM(D120) -> 1100 | E122: Passiva | F122: =D122 -> 1100
C124: Strom
C125: Bezahlung Stromrechnung | D125: =BUCHUNGSSÄTZE!H17 -> 1850 | E125: Privatanteil (Strom) | F125: =BUCHUNGSSÄTZE!H27 -> 370
C126: =IF(D126="","",IF(D126="---------------","------------------------------------------------","Saldo")) ->  | D126: =IF(SUM(F125)-SUM(D125)<0,"",IF(SUM(F125)=SUM(D125),"---------------",SUM(F125)-SUM(D125))) ->  | E126: =IF(F126="","",IF(F126="---------------","------------------------------------------------","Saldo")) -> Saldo | F126: =IF(SUM(D125)-SUM(F125)<0,"",IF(SUM(D125)=SUM(F125),"---------------",SUM(D125)-SUM(F125))) -> 1480
C127: Aktiva | D127: =SUM(D125:D126) -> 1850 | E127: Passiva | F127: =D127 -> 1850
C129: Abschreibung (AfA)
C130: AfA (Wirtschaftsgebäude) | D130: =BUCHUNGSSÄTZE!H22 -> 11300
C131: Afa (Maschinen) | D131: =BUCHUNGSSÄTZE!H23 -> 6799.666667
C132: =IF(D132="","",IF(D132="---------------","------------------------------------------------","Saldo")) ->  | D132: =IF(SUM(F130:F131)-SUM(D130:D131)<0,"",IF(SUM(F130:F131)=SUM(D130:D131),"---------------",SUM(F130:F131)-SUM(D130:D131))) ->  | E132: =IF(F132="","",IF(F132="---------------","------------------------------------------------","Saldo")) -> Saldo | F132: =IF(SUM(D130:D131)-SUM(F130:F131)<0,"",IF(SUM(D130:D131)=SUM(F130:F131),"---------------",SUM(D130:D131)-SUM(F130:F131))) -> 18099.66667
C133: Aktiva | D133: =SUM(D130:D131) -> 18099.66667 | E133: Passiva | F133: =D133 -> 18099.66667
C135: Ertragskonten
C136: Milchviehhaltung
E137: Einnahmen Milchviehhaltung | F137: =BUCHUNGSSÄTZE!H9 -> 44125
E138: Naturallieferung (Milch) | F138: =BUCHUNGSSÄTZE!H31 -> 165
C139: =IF(D139="","",IF(D139="---------------","------------------------------------------------","Saldo")) -> Saldo | D139: =IF(SUM(F137:F138)-SUM(D137:D138)<0,"",IF(SUM(F137:F138)=SUM(D137:D138),"---------------",SUM(F137:F138)-SUM(D137:D138))) -> 44290 | E139: =IF(F139="","",IF(F139="---------------","------------------------------------------------","Saldo")) ->  | F139: =IF(SUM(D137:D138)-SUM(F137:F138)<0,"",IF(SUM(D137:D138)=SUM(F137:F138),"---------------",SUM(D137:D138)-SUM(F137:F138))) -> 
C140: Aktiva | D140: =F140 -> 44290 | E140: Passiva | F140: =SUM(F137:F138) -> 44290
C142: Urlaub am Bauernhof
E143: Einnahmen UaB | F143: =BUCHUNGSSÄTZE!H12 -> 25000
C144: =IF(D144="","",IF(D144="---------------","------------------------------------------------","Saldo")) -> Saldo | D144: =IF(SUM(F143)-SUM(D143)<0,"",IF(SUM(F143)=SUM(D143),"---------------",SUM(F143)-SUM(D143))) -> 25000 | E144: =IF(F144="","",IF(F144="---------------","------------------------------------------------","Saldo")) ->  | F144: =IF(SUM(D143)-SUM(F143)<0,"",IF(SUM(D143)=SUM(F143),"---------------",SUM(D143)-SUM(F143))) -> 
C145: Aktiva | D145: =F145 -> 25000 | E145: Passiva | F145: =SUM(F143) -> 25000
C147: Mastvieh
E148: Mastviehverkauf | F148: =BUCHUNGSSÄTZE!H15 -> 7450
C149: =IF(BUCHUNGSSÄTZE!E35="Minderwert Viehvermögen","Minderwert Viehvermögen","") -> Minderwert Viehvermögen | D149: =IF(BUCHUNGSSÄTZE!E35="Minderwert Viehvermögen",BUCHUNGSSÄTZE!H35,"") -> 1550 | E149: =IF(BUCHUNGSSÄTZE!E35="Mehrwert Viehvermögen","Mehrwert Viehvermögen","") ->  | F149: =IF(BUCHUNGSSÄTZE!E35="Mehrwert Viehvermögen",BUCHUNGSSÄTZE!H35,"") -> 
C150: =IF(D150="","",IF(D150="---------------","------------------------------------------------","Saldo")) -> Saldo | D150: =IF(SUM(F148:F149)-SUM(D148:D149)<0,"",IF(SUM(F148:F149)=SUM(D148:D149),"---------------",SUM(F148:F149)-SUM(D148:D149))) -> 5900 | E150: =IF(F150="","",IF(F150="---------------","------------------------------------------------","Saldo")) ->  | F150: =IF(SUM(D148:D149)-SUM(F148:F149)<0,"",IF(SUM(D148:D149)=SUM(F148:F149),"---------------",SUM(D148:D149)-SUM(F148:F149))) -> 
C151: Aktiva | D151: =F151 -> 7450 | E151: Passiva | F151: =SUM(F148:F150) -> 7450
C153: Privatkonto
C154: Privat
C155: Privatausgaben Haushalt | D155: =BUCHUNGSSÄTZE!H10 -> 22150 | E155: Familienbeihilfe | F155: =BUCHUNGSSÄTZE!H11 -> 650
C156: Strom Privat | D156: =BUCHUNGSSÄTZE!H27 -> 370
C157: Naturallieferung | D157: =BUCHUNGSSÄTZE!H31 -> 165
C158: =IF(D158="","",IF(D158="---------------","------------------------------------------------","Saldo")) ->  | D158: =IF(SUM(F155:F157)-SUM(D155:D157)<0,"",IF(SUM(F155:F157)=SUM(D155:D157),"---------------",SUM(F155:F157)-SUM(D155:D157))) ->  | E158: =IF(F158="","",IF(F158="---------------","------------------------------------------------","Saldo")) -> Saldo | F158: =IF(SUM(D155:D157)-SUM(F155:F157)<0,"",IF(SUM(D155:D157)=SUM(F155:F157),"---------------",SUM(D155:D157)-SUM(F155:F157))) -> 22035
C159: Aktiva | D159: =SUM(D155:D157) -> 22685 | E159: Passiva | F159: =D159 -> 22685

Sheet Ber.BILAN
C1: Bilanzanalyse
C3: Die Bilanzanalyse liefert wertvolle Auskünfte hinsichtlich der finanzwirtschaftlichen Situation des Betriebs bzw. Unternehmens. Bei Vergleichen zwischen Betrieben muss darauf geachtet werden, dass die Posten der Bilanz einheitlich bewertet wurden (wichtig vor allem beim Boden oder dem stehenden Holz).
C5: Eigenkapitalanteil (31.12.)
C6: Eigenkapital | D6: = | F6: x 100 | G6: =
C7: Gesamtkapital
C10: Verschuldungsgrad (31.12.)
C11: Fremdkapital | D11: = | F11: x 100 | G11: =
C12: Gesamtkapital
C15: Je höher der Eigenkapitalanteil und je niedriger der Verschuldungsgrad, desto geringer ist die Abhängigkeit eines landwirtschaftlichen Betriebs von Kreditgebern und desto vorsichtiger wurde finanziert.
C17: Anlagenintensität (31.12.)
C18: Anlagevermögen1 | D18: = | F18: x 100 | G18: =
C19: Gesamtvermögen
C20: 1 Wirtschaftsgebäude sowie Maschinen und Geräte
C23: Für einen landwirtschaftlichen Betrieb gilt:
C24: Je höher die Anlagenintensität, desto mehr ist er in seinem Aufbau gebunden, umso stärker ist die Belastung mit Fixkosten.
C25: Je höher die Anlagenintensität, desto langsamer setzt er das Vermögen um, die Verzinsung des Vermögens ist meist gering.
C26: Die relative Erhöhung der Anlagenintensität kann sich jedoch auch aus Einsparungen beim Umlaufvermögen ergeben.
C29: Goldene Bilanzregel im engeren Sinn (31.12.)
C30: EK + langfrist. FK2 | D30: = | F30: x 100 | G30: =
C31: Anlagenvermögen (AV)
C32: 2 EK = Eigenkapital, FK = Fremdkapital
C35: Die „goldene Bilanzregel“ im engeren Sinne besagt, dass das Anlagevermögen langfristig zu finanzieren ist.
C37: Goldene Bilanzregel im weiteren Sinn (31.12.)
C38: EK + langfrist. FK | D38: = | F38: x 100 | G38: =
C39: AV + gebundenes UV3
C40: 3 gebundenes Umlaufvermögen (UV): Viehvermögen und Vorräte
C43: Als „goldene Bilanzregel“ im weiteren Sinne wird der Grundsatz bezeichnet, dass das Anlage- und das gebundene Umlaufvermögen zusammen langfristig finanziert werden sollen:

Sheet Ber.RENT
C1: Analyse der Rentabilität
C3: Die Analyse der Rentabilität ermittelt den Ertrag der eingesetzten Produktionsfaktoren „Arbeit“ und „Kapital“ im Vergleich zum benötigten Aufwand.
C5: Einkünfte aus Land- und Forstwirtschaft
C6: =+BUCHFÜHRUNG!F32 -> 75190 | D6: - | E6: =+SUM(BUCHFÜHRUNG!D25:D30) -> 50179.66667 | G6: =
C9: Die Einkünfte stellen
C10: die Abgeltung für die geleistete Arbeit der nicht entlohnten Arbeitskräfte für die unternehmerische Tätigkeit und
C11: die Verzinsung für den Einsatz des Eigenkapitals dar.
C13: Gewinnrate
C14: Einkünfte LuF | D14: = | F14: x 100 | G14: =
C15: Ertrag
C18: Je höher die Gewinnrate eines Unternehmens, desto effizienter arbeitet es und umso leichter können Krisenzeiten bei sinkenden Erzeugerpreisen überstanden werden.
C20: =BUCHFÜHRUNG!D49/100 -> 0.035
D21: Gewinn
C22: =-BUCHFÜHRUNG!F15*C20 -> -6580.872667 | D22: Zinsansatz Eigenkapital*
D23: Arbeitsverdienst
C24: ="* "&TEXT(BUCHFÜHRUNG!F15,"# ##0")&" Euro mal Zinssatz von "&C20*100&"%" -> * 188 025 Euro mal Zinssatz von 3,5%
C27: Vermögensrente
D28: Gewinn
C29: =-BUCHFÜHRUNG!D48 -> -21297 | D29: Lohnansatz
D30: Vermögensrente
C33: Unternehmergewinn
D34: Gewinn
C35: =+C22 -> -6580.872667 | D35: Zinsansatz Eigenkapital
C36: =+C29 -> -21297 | D36: Lohnansatz
D37: Unternehmergewinn (-verlust)
C40: Der Unternehmergewinn bzw. Unternehmerverlust informiert über die Entlohnung der unternehmerischen Leistung, wenn vom Gewinn sowohl der Lohn- als auch der Zinsansatz abgezogen sind.
C42: Eigenkapitalrentabiliät
C43: Einkünfte LuF - LA | D43: = | F43: x 100 | G43: =
C44: Eigenkapital
C45: LA = Lohnansatz (siehe oben!)
C48: Vom Gewinn wird der Lohnansatz für die nicht entlohnten Arbeitskräfte abzogen, die resultierende Differenz wird durch das betrieblich gebundene Eigenkapital dividiert.
C50: Gesamtkapitalrentabilität | J50: ROI
C51: Einkünfte LuF + SZ - LA | D51: = | F51: x 100 | G51: =
C52: Gesamtkapital
C53: LA = Lohnansatz (siehe oben!), SZ = Schuldzinsen (siehe Buchführung!)
C56: Schulden sind Bestandteil des Gesamtkapitals, deshalb werden die Schuldzinsen wieder hinzugerechnet (diese wurden im Aufwand zur Ermittlung der Einkünfte aus LuF).

Sheet Ber.FIN
A3: Analyse der Finanzierungskraft
A5: Die Analyse der Finanzierungskraft meint im Wesentlichen die Gegenüberstellung von Einnahmen und Ausgaben. Die Änderungen des Geldbereichs sollen die Finanzierungskraft aus Eigenmitteln veranschaulichen. Als Kennzahlen bzw. Methoden haben sich in diesem Zusammenhang der Cash-Flow sowie die Kapitalflussrechnung etabliert.
A7: Cash Flow
A9: Bezeichnung | B9: Euro | C9: Euro gesamt
A10: Einkünfte LuF | B10: =+BUCHFÜHRUNG!D31 -> 25010.33333 | D10: Einkünfte LuF laut GuV
A11: - Naturallieferung Milch | B11: =+BUCHFÜHRUNG!F138 -> 165 | D11: Ist ein Ertrag, aber keine Einnahme
A12: + Minderung Viehvermögen | B12: =+BUCHFÜHRUNG!D148 -> 0 | D12: Ist ein Aufwand, aber sind keine Ausgaben
A13: + Abschreibungen | B13: =+BUCHFÜHRUNG!D130+BUCHFÜHRUNG!D131 -> 18099.66667 | D13: Ist ein Aufwand, aber sind keine Ausgaben
A14: = Cash Flow I
A15: - Investitionen | B15: =+BUCHFÜHRUNG!D60 -> 25000 | D15: Kauf eines Ladewagens
A16: - Kreditrückzahlungen | B16: =+BUCHFÜHRUNG!D98 -> 8500 | D16: Tilgung
A17: = Cash Flow II
A18: + Einlagen | B18: =+BUCHFÜHRUNG!F155 -> 650 | D18: Familienbeihilfe
A19: - Entnahmen | B19: =+BUCHFÜHRUNG!D155+BUCHFÜHRUNG!D156 -> 22520 | D19: Ausgaben für den Haushalt plus private Stromausgaben
A20: = Cash Flow III
A22: Der Cash-Flow stellt die Einnahmen und Ausgaben eines Unternehmens während eines Jahres gegenüber. Ausgehend von der Gewinn- und Verlustrechnung errechnet sich der Cash-Flow I, indem vom Gewinn die Abschreibungen und Minderwerte hinzugerechnet und die Mehrwerte abgezogen werden. Vom Cash-Flow I werden Ausgaben für Investitionen sowie Tilgungen für Kredite abgezogen, als Ergebnis wird der Cash-Flow II ausgewiesen. Der Cash-Flow III errechnet sich, indem vom Cash-Flow II die Einlagen hinzu- und die Entnahmen des Privatbereichs abgezogen werden. Der erhaltene Betrag wird auch als Free Cash-Flow ohne Fremdfinanzierung oder als Geldüberschuss bezeichnet.
A26: Analyse der Finanzierungskraft
A28: Kapitalflussrechnung
A30: Bezeichnung | B30: Mittel- herkunft | C30: Mittel-verwendung | D30: Differenz
A31: Milchverkauf | B31: =+BUCHFÜHRUNG!F137 -> 44125 | E31: Nur Milchverkauf ohne Naturallierung an Haushalt
A32: Urlaub am Bauernhof | B32: =+BUCHFÜHRUNG!F143 -> 25000 | E32: Einnahmen Urlaub am Bauernhof
A33: Rinderverkauf | B33: =+BUCHFÜHRUNG!F148 -> 7450 | E33: Bestandesminderungen werden nicht berücksichtigt; sind keine Ausgaben, nur Aufwand
A34: Summe Einnahmen
A35: Dünger | B35: =-BUCHFÜHRUNG!D110 -> -4500 | C35: =+BUCHFÜHRUNG!F111 -> 4500 | E35: Aufwand für Dünger
A36: Diverse Betriebsmittel | B36: =-BUCHFÜHRUNG!D115 -> -25000 | C36: =+BUCHFÜHRUNG!F116 -> 25000 | E36: Aufwand für diverse Betriebsmittel
A37: Schuldzinsen | B37: =-BUCHFÜHRUNG!D120 -> -1100 | C37: =+BUCHFÜHRUNG!F121 -> 1100 | E37: Aufwand für Schuldzinsen
A38: Strom | B38: =-BUCHFÜHRUNG!F126 -> -1480 | C38: =+BUCHFÜHRUNG!F126 -> 1480 | E38: Nur betrieblicher Strom (Privatanteil ist abgezogen)
A39: Summe Ausgaben
A40: Umsatzbereich
A41: Desinvestitionen | B41: 0 | E41: Keine Verkäufe von Anlagen
A42: Investitionen | C42: =+BUCHFÜHRUNG!D60 -> 25000 | E42: Kauf eines Ladewagens
A43: Anlagenbereich
A44: Kreditaufnahme | B44: 0 | E44: Keine Aufnahme neuer Kredit
A45: Kreditrückzahlung | C45: =+BUCHFÜHRUNG!D98 -> 8500 | E45: Tilgung
A46: Fremdkapitalbereich
A47: Einlagen | B47: =+BUCHFÜHRUNG!F155 -> 650 | E47: Familienbeihilfe
A48: Entnahmen | C48: =+BUCHFÜHRUNG!D155+BUCHFÜHRUNG!D156 -> 22520 | E48: Ausgaben für den Haushalt plus private Stromausgaben
A49: Privatbereich
A50: Erhalt Forderungen | B50: =+BUCHFÜHRUNG!D85 -> 14800 | E50: Offene Forderung wurde an uns gezahlt
A51: Zunahme Girokonto | C51: =+BUCHFÜHRUNG!F87-BUCHFÜHRUNG!D81 -> 1075 | E51: Endbestand minus Anfangsbestand
A52: Zunahme Kassa | C52: =+BUCHFÜHRUNG!F93-BUCHFÜHRUNG!D91 -> 2850 | E52: Endbestand minus Anfangsbestand
A53: Geldbereich
A55: Kontrollsumme | D55: =+D40+D43+D46+D49+D53 -> 0 | E55: Kontrollsumme muss 0 sein!
A57: Die Kapitalflussrechnung stellt eine Bewegungsrechnung dar, die für einen bestimmten Zeitraum Herkunft und Verwendung verschiedener, liquiditätswirksamer Mittel gegenüberstellt. Die Beträge werden nach Mittelherkunft und Mittelverwendung getrennt.

Sheet Ber.STAB
C1: Analyse der Stabilität
C3: Stabilität wird definiert als die Fähigkeit eines Unternehmens, Rentabilität und Liquidität auch bei Eintritt unvorhergesehener Ereignisse langfristig zu sichern.
C5: Fremdkapitalanteil
C6: siehe Bilanzanalyse
C8: Anlagenintensität
C9: siehe Bilanzanalyse
C11: Veralterungsgrad von abnutzbarem Anlagevermögen
C12: Gebäude und bauliche Anlagen
C13: Buchwert (31.12.) | D13: = | F13: x 100 | G13: =
C14: Summe Anschaffungswert
C17: Maschinen und Geräte
C18: Buchwert (31.12.) | D18: = | F18: x 100 | G18: =
C19: Summe Anschaffungswert
C22: Je niedriger der Veralterungsgrad, desto älter sind die Anlagengüter, das heißt, desto größer ist der Investitionsrückstand, sofern die Nutzungsdauer richtig eingeschätzt wurde. In einer ersten Näherung könnte die Aussage getroffen werden, dass bei einer Relation von Buchwert zu Anschaffungswert gleich 0,5 der Betrieb kontinuierlich investiert hat. Dies gilt aber streng genommen nur dann, wenn eine Inflationsrate von null Prozent vorläge.
C24: Eigenkapitalveränderung
C25: Einkünfte aus LuF | E25: =+BUCHFÜHRUNG!D31 -> 25010.33333
C26: + Einlagen | E26: =+BUCHFÜHRUNG!F35 -> 650 | F26: Familienbeihilfe
C27: = Gesamt(Haushalts)einkommen | E27: =+E25+E26 -> 25660.33333
C28: - Verbrauch | E28: =+BUCHFÜHRUNG!D35+BUCHFÜHRUNG!D36+BUCHFÜHRUNG!D37 -> 22685 | F28: Privatentnahmen *
C29: = Eigenkapitalveränderung | F29: **
C32: Die Höhe der Eigenkapitalveränderung informiert darüber, inwieweit der Gewinn und die Einlagen ausgereicht haben, die Entnahmen abzudecken. Eine positive Eigenkapitalveränderung ist deshalb erforderlich, da wegen der Inflation die zurückgelegten Abschreibungen für eine Ersatzinvestition nicht ausreichen. Die Eigenkapitalveränderung muss daher die Differenz aus Wiederbeschaffungswert und ursprünglichem Anschaffungswert abdecken.
C37: Kapitaldienstgrenze
C38: Bezeichnung | E38: Euro
C39: Eigenkapitalveränderung | E39: =IF(E29="","noch leer",+E29) -> noch leer
C40: + gezahlte Schuldzinsen | E40: =+BUCHFÜHRUNG!D27 -> 1100
C41: = langfristige Kapitaldienstgrenze
C42: + AfA Gebäude | E42: =+BUCHFÜHRUNG!D130 -> 11300
C43: = mittelfristige Kapitaldienstgrenze
C44: + AfA Maschinen | E44: =+BUCHFÜHRUNG!D131 -> 6799.666667
C45: = kurzfristige Kapitaldienstgrenze
C47: Die langfristige Kapitaldienstgrenze drückt aus, wie viel maximal für Zinsen und Tilgung (=Kapitaldienst) bereits bestehender und zusätzlicher Kredite maximal zur Verfügung steht. Deshalb werden zur Eigenkapitalveränderung auch die gezahlten Schuldzinsen, die bereits im Aufwand enthalten waren, hinzugezählt. Bei der mittelfristigen Kapitaldienstgrenze werden auch die Abschreibungen für Gebäude und bauliche Anlagen, Bodenverbesserungen und Dauerkulturen dazugezählt. Bei der kurzfristigen Kapitaldienstgrenze sind noch die Abschreibungen für Maschinen und Geräte berücksichtigt.
C49: * Ausgaben Haushalt, Strom Privatanteil, Naturallieferung Milch
C50: ** Auch Überdeckung des Verbrauchs genannt

Sheet Korrektur
C1: Korrekturblatt - Kennzahlenanalyse
N2: =IF(F96>J96,"Du musst zuerst alle Berechnungen durchführen, um das Ergebnis ansehen zu können!","") -> Du musst zuerst alle Berechnungen durchführen, um das Ergebnis ansehen zu können!
D3: unabhängige Ergebnisse
D5: abhängige Ergebnisse (werden wenn die Formel korrekt ist, als Folgefehler mit 0,5 Punkten bewertet)
F7: Ergebnis | H7: Formel- prüfung | J7: Deine Be-rechnung | K7: ="Fehler" -> Fehler | L7: Punkte
C8: 1. | D8: Bilanzanalyse
D9: Eigenkapital | F9: =IF(Hilfe.BILAN!E6="","",Hilfe.BILAN!E6) -> 188024.9333 | H9: - | J9: =IF(Ber.BILAN!E6="","",Ber.BILAN!E6) ->  | K9: =IF(J9=F9,"Richtig!",IF(J9="","Fehlt","Falsch")) -> Fehlt | L9: =IF(K9="Richtig!",1,IF(K9="Formel: OK",0.5,IF(OR(K9="Falsch",K9="Fehlt"),0,""))) -> 0 | M9: │ | N9: 1
D10: Gesamtkapital | F10: =IF(Hilfe.BILAN!E7="","",Hilfe.BILAN!E7) -> 269524.9333 | J10: =IF(Ber.BILAN!E7="","",Ber.BILAN!E7) ->  | K10: =IF(J10=F10,"Richtig!",IF(J10="","Fehlt","Falsch")) -> Fehlt | L10: =IF(K10="Richtig!",1,IF(K10="Formel: OK",0.5,IF(OR(K10="Falsch",K10="Fehlt"),0,""))) -> 0 | M10: │ | N10: 1
D11: Eigenkapitalanteil (31.12.) | F11: =IF(Hilfe.BILAN!H6="","",Hilfe.BILAN!H6) -> 0.6976161018 | H11: =IF(OR(J9="",J10=""),"-",J9/J10) -> - | J11: =IF(Ber.BILAN!H6="","",Ber.BILAN!H6) ->  | K11: =IF(J11=F11,"Richtig!",IF(AND(H11<>"",J11<>F11,J11=H11),"Formel: OK",IF(J11="","Fehlt","Falsch"))) -> Fehlt | L11: =IF(K11="Richtig!",1,IF(K11="Formel: OK",0.5,IF(OR(K11="Falsch",K11="Fehlt"),0,""))) -> 0 | M11: │ | N11: 1
D13: Fremdkapital | F13: =IF(Hilfe.BILAN!E11="","",Hilfe.BILAN!E11) -> 81500 | H13: - | J13: =IF(Ber.BILAN!E11="","",Ber.BILAN!E11) ->  | K13: =IF(J13=F13,"Richtig!",IF(J13="","Fehlt","Falsch")) -> Fehlt | L13: =IF(K13="Richtig!",1,IF(K13="Formel: OK",0.5,IF(OR(K13="Falsch",K13="Fehlt"),0,""))) -> 0 | M13: │ | N13: 1
D14: Gesamtkapital | F14: =IF(Hilfe.BILAN!E12="","",Hilfe.BILAN!E12) -> 269524.9333 | J14: =IF(Ber.BILAN!E12="","",Ber.BILAN!E12) ->  | K14: =IF(J14=F14,"Richtig!",IF(J14="","Fehlt","Falsch")) -> Fehlt | L14: =IF(K14="Richtig!",1,IF(K14="Formel: OK",0.5,IF(OR(K14="Falsch",K14="Fehlt"),0,""))) -> 0 | M14: │ | N14: 1
D15: Verschulungsgrad (31.12.) | F15: =IF(Hilfe.BILAN!H11="","",Hilfe.BILAN!H11) -> 0.3023838982 | H15: =IF(OR(J13="",J14=""),"-",J13/J14) -> - | J15: =IF(Ber.BILAN!H11="","",Ber.BILAN!H11) ->  | K15: =IF(J15=F15,"Richtig!",IF(AND(H15<>"",J15<>F15,J15=H15),"Formel: OK",IF(J15="","Fehlt","Falsch"))) -> Fehlt | L15: =IF(K15="Richtig!",1,IF(K15="Formel: OK",0.5,IF(OR(K15="Falsch",K15="Fehlt"),0,""))) -> 0 | M15: │ | N15: 1
D17: Anlagevermögen | F17: =IF(Hilfe.BILAN!E18="","",Hilfe.BILAN!E18) -> 229800.3333 | H17: - | J17: =IF(Ber.BILAN!E18="","",Ber.BILAN!E18) ->  | K17: =IF(J17=F17,"Richtig!",IF(J17="","Fehlt","Falsch")) -> Fehlt | L17: =IF(K17="Richtig!",1,IF(K17="Formel: OK",0.5,IF(OR(K17="Falsch",K17="Fehlt"),0,""))) -> 0 | M17: │ | N17: 1
D18: Gemtvermögen | F18: =IF(Hilfe.BILAN!E19="","",Hilfe.BILAN!E19) -> 269524.9333 | J18: =IF(Ber.BILAN!E19="","",Ber.BILAN!E19) ->  | K18: =IF(J18=F18,"Richtig!",IF(J18="","Fehlt","Falsch")) -> Fehlt | L18: =IF(K18="Richtig!",1,IF(K18="Formel: OK",0.5,IF(OR(K18="Falsch",K18="Fehlt"),0,""))) -> 0 | M18: │ | N18: 1
D19: Anlagenintensität (31.12.) | F19: =IF(Hilfe.BILAN!H18="","",Hilfe.BILAN!H18) -> 0.8526125227 | H19: =IF(OR(J17="",J18=""),"-",J17/J18) -> - | J19: =IF(Ber.BILAN!H18="","",Ber.BILAN!H18) ->  | K19: =IF(J19=F19,"Richtig!",IF(AND(H19<>"",J19<>F19,J19=H19),"Formel: OK",IF(J19="","Fehlt","Falsch"))) -> Fehlt | L19: =IF(K19="Richtig!",1,IF(K19="Formel: OK",0.5,IF(OR(K19="Falsch",K19="Fehlt"),0,""))) -> 0 | M19: │ | N19: 1
D21: EK + langfrist. FK | F21: =IF(Hilfe.BILAN!E30="","",Hilfe.BILAN!E30) -> 269524.9333 | H21: - | J21: =IF(Ber.BILAN!E30="","",Ber.BILAN!E30) ->  | K21: =IF(J21=F21,"Richtig!",IF(J21="","Fehlt","Falsch")) -> Fehlt | L21: =IF(K21="Richtig!",1,IF(K21="Formel: OK",0.5,IF(OR(K21="Falsch",K21="Fehlt"),0,""))) -> 0 | M21: │ | N21: 1
D22: Anlagenvermögen (AV) | F22: =IF(Hilfe.BILAN!E31="","",Hilfe.BILAN!E31) -> 229800.3333 | J22: =IF(Ber.BILAN!E31="","",Ber.BILAN!E31) ->  | K22: =IF(J22=F22,"Richtig!",IF(J22="","Fehlt","Falsch")) -> Fehlt | L22: =IF(K22="Richtig!",1,IF(K22="Formel: OK",0.5,IF(OR(K22="Falsch",K22="Fehlt"),0,""))) -> 0 | M22: │ | N22: 1
D23: Goldene Bilanzregel im engeren Sinn (31.12.) | F23: =IF(Hilfe.BILAN!H30="","",Hilfe.BILAN!H30) -> 1.17286572 | H23: =IF(OR(J21="",J22=""),"-",J21/J22) -> - | J23: =IF(Ber.BILAN!H30="","",Ber.BILAN!H30) ->  | K23: =IF(J23=F23,"Richtig!",IF(AND(H23<>"",J23<>F23,J23=H23),"Formel: OK",IF(J23="","Fehlt","Falsch"))) -> Fehlt | L23: =IF(K23="Richtig!",1,IF(K23="Formel: OK",0.5,IF(OR(K23="Falsch",K23="Fehlt"),0,""))) -> 0 | M23: │ | N23: 1
D25: EK + langfrist. FK | F25: =IF(Hilfe.BILAN!E38="","",Hilfe.BILAN!E38) -> 269524.9333 | H25: - | J25: =IF(Ber.BILAN!E38="","",Ber.BILAN!E38) ->  | K25: =IF(J25=F25,"Richtig!",IF(J25="","Fehlt","Falsch")) -> Fehlt | L25: =IF(K25="Richtig!",1,IF(K25="Formel: OK",0.5,IF(OR(K25="Falsch",K25="Fehlt"),0,""))) -> 0 | M25: │ | N25: 1
D26: AV + gebundenes UV | F26: =IF(Hilfe.BILAN!E39="","",Hilfe.BILAN!E39) -> 263049.9333 | J26: =IF(Ber.BILAN!E39="","",Ber.BILAN!E39) ->  | K26: =IF(J26=F26,"Richtig!",IF(J26="","Fehlt","Falsch")) -> Fehlt | L26: =IF(K26="Richtig!",1,IF(K26="Formel: OK",0.5,IF(OR(K26="Falsch",K26="Fehlt"),0,""))) -> 0 | M26: │ | N26: 1
D27: Goldene Bilanzregel im weiteren Sinn (31.12.) | F27: =IF(Hilfe.BILAN!H38="","",Hilfe.BILAN!H38) -> 1.024615098 | H27: =IF(OR(J25="",J26=""),"-",J25/J26) -> - | J27: =IF(Ber.BILAN!H38="","",Ber.BILAN!H38) ->  | K27: =IF(J27=F27,"Richtig!",IF(AND(H27<>"",J27<>F27,J27=H27),"Formel: OK",IF(J27="","Fehlt","Falsch"))) -> Fehlt | L27: =IF(K27="Richtig!",1,IF(K27="Formel: OK",0.5,IF(OR(K27="Falsch",K27="Fehlt"),0,""))) -> 0 | M27: │ | N27: 1
C29: 2. | D29: Analyse der Rentabilität
D30: Einkünfte aus Land- und Forstwirtschaft | F30: =IF(Hilfe.RENT!H6="","",Hilfe.RENT!H6) -> 25010.33333 | H30: - | J30: =IF(Ber.RENT!H6="","",Ber.RENT!H6) ->  | K30: =IF(J30=F30,"Richtig!",IF(J30="","Fehlt","Falsch")) -> Fehlt | L30: =IF(K30="Richtig!",1,IF(K30="Formel: OK",0.5,IF(OR(K30="Falsch",K30="Fehlt"),0,""))) -> 0 | M30: │ | N30: 1
D32: Einkünfte LuF | F32: =IF(Hilfe.RENT!E14="","",Hilfe.RENT!E14) -> 25010.33333 | H32: - | J32: =IF(Ber.RENT!E14="","",Ber.RENT!E14) ->  | K32: =IF(J32=F32,"Richtig!",IF(J32="","Fehlt","Falsch")) -> Fehlt | L32: =IF(K32="Richtig!",1,IF(K32="Formel: OK",0.5,IF(OR(K32="Falsch",K32="Fehlt"),0,""))) -> 0 | M32: │ | N32: 1
D33: Ertrag | F33: =IF(Hilfe.RENT!E15="","",Hilfe.RENT!E15) -> 75190 | H33: - | J33: =IF(Ber.RENT!E15="","",Ber.RENT!E15) ->  | K33: =IF(J33=F33,"Richtig!",IF(J33="","Fehlt","Falsch")) -> Fehlt | L33: =IF(K33="Richtig!",1,IF(K33="Formel: OK",0.5,IF(OR(K33="Falsch",K33="Fehlt"),0,""))) -> 0 | M33: │ | N33: 1
D34: Gewinnrate | F34: =IF(Hilfe.RENT!H14="","",Hilfe.RENT!H14) -> 0.3326284524 | H34: =IF(OR(J32="",J33=""),"-",J32/J33) -> - | J34: =IF(Ber.RENT!H14="","",Ber.RENT!H14) ->  | K34: =IF(J34=F34,"Richtig!",IF(AND(H34<>"",J34<>F34,J34=H34),"Formel: OK",IF(J34="","Fehlt","Falsch"))) -> Fehlt | L34: =IF(K34="Richtig!",1,IF(K34="Formel: OK",0.5,IF(OR(K34="Falsch",K34="Fehlt"),0,""))) -> 0 | M34: │ | N34: 1
D36: Gewinn | F36: =IF(Hilfe.RENT!C21="","",Hilfe.RENT!C21) -> 25010.33333 | H36: - | J36: =IF(Ber.RENT!C21="","",Ber.RENT!C21) ->  | K36: =IF(J36=F36,"Richtig!",IF(J36="","Fehlt","Falsch")) -> Fehlt | L36: =IF(K36="Richtig!",1,IF(K36="Formel: OK",0.5,IF(OR(K36="Falsch",K36="Fehlt"),0,""))) -> 0 | M36: │ | N36: 1
D37: Arbeitsverdienst der nicht entlohnten Arbeitskräfte | F37: =IF(Hilfe.RENT!C23="","",Hilfe.RENT!C23) -> 18429.46067 | H37: =IF(OR(Ber.RENT!C22,J36=""),"-",SUM(Ber.RENT!C22,J36)) -> - | J37: =IF(Ber.RENT!C23="","",Ber.RENT!C23) ->  | K37: =IF(J37=F37,"Richtig!",IF(AND(H37<>"",J37<>F37,J37=H37),"Formel: OK",IF(J37="","Fehlt","Falsch"))) -> Fehlt | L37: =IF(K37="Richtig!",1,IF(K37="Formel: OK",0.5,IF(OR(K37="Falsch",K37="Fehlt"),0,""))) -> 0 | M37: │ | N37: 1
D39: Gewinn | F39: =IF(Hilfe.RENT!C28="","",Hilfe.RENT!C28) -> 25010.33333 | H39: - | J39: =IF(Ber.RENT!C28="","",Ber.RENT!C28) ->  | K39: =IF(J39=F39,"Richtig!",IF(J39="","Fehlt","Falsch")) -> Fehlt | L39: =IF(K39="Richtig!",1,IF(K39="Formel: OK",0.5,IF(OR(K39="Falsch",K39="Fehlt"),0,""))) -> 0 | M39: │ | N39: 1
D40: Vermögensrente | F40: =IF(Hilfe.RENT!C30="","",Hilfe.RENT!C30) -> 3713.333333 | H40: =IF(OR(Ber.RENT!C29,J39=""),"-",SUM(Ber.RENT!C29,J39)) -> - | J40: =IF(Ber.RENT!C30="","",Ber.RENT!C30) ->  | K40: =IF(J40=F40,"Richtig!",IF(AND(H40<>"",J40<>F40,J40=H40),"Formel: OK",IF(J40="","Fehlt","Falsch"))) -> Fehlt | L40: =IF(K40="Richtig!",1,IF(K40="Formel: OK",0.5,IF(OR(K40="Falsch",K40="Fehlt"),0,""))) -> 0 | M40: │ | N40: 1
D42: Gewinn | F42: =IF(Hilfe.RENT!C34="","",Hilfe.RENT!C34) -> 25010.33333 | H42: - | J42: =IF(Ber.RENT!C34="","",Ber.RENT!C34) ->  | K42: =IF(J42=F42,"Richtig!",IF(J42="","Fehlt","Falsch")) -> Fehlt | L42: =IF(K42="Richtig!",1,IF(K42="Formel: OK",0.5,IF(OR(K42="Falsch",K42="Fehlt"),0,""))) -> 0 | M42: │ | N42: 1
D43: Unternehmergewinn | F43: =IF(Hilfe.RENT!C37="","",Hilfe.RENT!C37) -> -2867.539333 | H43: =IF(OR(Ber.RENT!C35,Ber.RENT!C36,J42=""),"-",SUM(Ber.RENT!C35,Ber.RENT!C36,J42)) -> - | J43: =IF(Ber.RENT!C37="","",Ber.RENT!C37) ->  | K43: =IF(J43=F43,"Richtig!",IF(AND(H43<>"",J43<>F43,J43=H43),"Formel: OK",IF(J43="","Fehlt","Falsch"))) -> Fehlt | L43: =IF(K43="Richtig!",1,IF(K43="Formel: OK",0.5,IF(OR(K43="Falsch",K43="Fehlt"),0,""))) -> 0 | M43: │ | N43: 1
D45: Einkünfte LuF - LA | F45: =IF(Hilfe.RENT!E43="","",Hilfe.RENT!E43) -> 3713.333333 | H45: - | J45: =IF(Ber.RENT!E43="","",Ber.RENT!E43) ->  | K45: =IF(J45=F45,"Richtig!",IF(J45="","Fehlt","Falsch")) -> Fehlt | L45: =IF(K45="Richtig!",1,IF(K45="Formel: OK",0.5,IF(OR(K45="Falsch",K45="Fehlt"),0,""))) -> 0 | M45: │ | N45: 1
D46: Eigenkapital | F46: =IF(Hilfe.RENT!E44="","",Hilfe.RENT!E44) -> 188024.9333 | H46: - | J46: =IF(Ber.RENT!E44="","",Ber.RENT!E44) ->  | K46: =IF(J46=F46,"Richtig!",IF(J46="","Fehlt","Falsch")) -> Fehlt | L46: =IF(K46="Richtig!",1,IF(K46="Formel: OK",0.5,IF(OR(K46="Falsch",K46="Fehlt"),0,""))) -> 0 | M46: │ | N46: 1
D47: Eigenkapitalrentabiliät | F47: =IF(Hilfe.RENT!H43="","",Hilfe.RENT!H43) -> 0.01974915384 | H47: =IF(OR(J45="",J46=""),"-",J45/J46) -> - | J47: =IF(Ber.RENT!H43="","",Ber.RENT!H43) ->  | K47: =IF(J47=F47,"Richtig!",IF(AND(H47<>"",J47<>F47,J47=H47),"Formel: OK",IF(J47="","Fehlt","Falsch"))) -> Fehlt | L47: =IF(K47="Richtig!",1,IF(K47="Formel: OK",0.5,IF(OR(K47="Falsch",K47="Fehlt"),0,""))) -> 0 | M47: │ | N47: 1
D49: Einkünfte LuF + SZ - LA | F49: =IF(Hilfe.RENT!E51="","",Hilfe.RENT!E51) -> 4813.333333 | H49: - | J49: =IF(Ber.RENT!E51="","",Ber.RENT!E51) ->  | K49: =IF(J49=F49,"Richtig!",IF(J49="","Fehlt","Falsch")) -> Fehlt | L49: =IF(K49="Richtig!",1,IF(K49="Formel: OK",0.5,IF(OR(K49="Falsch",K49="Fehlt"),0,""))) -> 0 | M49: │ | N49: 1
D50: Gesamtkapital | F50: =IF(Hilfe.RENT!E52="","",Hilfe.RENT!E52) -> 269524.9333 | H50: - | J50: =IF(Ber.RENT!E52="","",Ber.RENT!E52) ->  | K50: =IF(J50=F50,"Richtig!",IF(J50="","Fehlt","Falsch")) -> Fehlt | L50: =IF(K50="Richtig!",1,IF(K50="Formel: OK",0.5,IF(OR(K50="Falsch",K50="Fehlt"),0,""))) -> 0 | M50: │ | N50: 1
D51: Gesamtkapitalrentabilität | F51: =IF(Hilfe.RENT!H51="","",Hilfe.RENT!H51) -> 0.01785858278 | H51: =IF(OR(J49="",J50=""),"-",J49/J50) -> - | J51: =IF(Ber.RENT!H51="","",Ber.RENT!H51) ->  | K51: =IF(J51=F51,"Richtig!",IF(AND(H51<>"",J51<>F51,J51=H51),"Formel: OK",IF(J51="","Fehlt","Falsch"))) -> Fehlt | L51: =IF(K51="Richtig!",1,IF(K51="Formel: OK",0.5,IF(OR(K51="Falsch",K51="Fehlt"),0,""))) -> 0 | M51: │ | N51: 1
C53: 3. | D53: Analyse der Finazierungskraft
D54: Cash Flow I | F54: =IF(Hilfe.FIN!C14="","",Hilfe.FIN!C14) -> 42945 | H54: - | J54: =IF(Ber.FIN!C14="","",Ber.FIN!C14) ->  | K54: =IF(J54=F54,"Richtig!",IF(J54="","Fehlt","Falsch")) -> Fehlt | L54: =IF(K54="Richtig!",1,IF(K54="Formel: OK",0.5,IF(OR(K54="Falsch",K54="Fehlt"),0,""))) -> 0 | M54: │ | N54: 1
D55: Cash Flow II | F55: =IF(Hilfe.FIN!C17="","",Hilfe.FIN!C17) -> 9445 | H55: - | J55: =IF(Ber.FIN!C17="","",Ber.FIN!C17) ->  | K55: =IF(J55=F55,"Richtig!",IF(J55="","Fehlt","Falsch")) -> Fehlt | L55: =IF(K55="Richtig!",1,IF(K55="Formel: OK",0.5,IF(OR(K55="Falsch",K55="Fehlt"),0,""))) -> 0 | M55: │ | N55: 1
D56: Cash Flow III | F56: =IF(Hilfe.FIN!C20="","",Hilfe.FIN!C20) -> -12425 | H56: - | J56: =IF(Ber.FIN!C20="","",Ber.FIN!C20) ->  | K56: =IF(J56=F56,"Richtig!",IF(J56="","Fehlt","Falsch")) -> Fehlt | L56: =IF(K56="Richtig!",1,IF(K56="Formel: OK",0.5,IF(OR(K56="Falsch",K56="Fehlt"),0,""))) -> 0 | M56: │ | N56: 1
D58: Kapitalflussrechnung
D59: Summe Einnahmen | F59: =IF(Hilfe.FIN!B34="","",Hilfe.FIN!B34) -> 76575 | H59: - | J59: =IF(Ber.FIN!B34="","",Ber.FIN!B34) ->  | K59: =IF(J59=F59,"Richtig!",IF(J59="","Fehlt","Falsch")) -> Fehlt | L59: =IF(K59="Richtig!",1,IF(K59="Formel: OK",0.5,IF(OR(K59="Falsch",K59="Fehlt"),0,""))) -> 0 | M59: │ | N59: 1
D60: Summe Ausgaben | F60: =IF(Hilfe.FIN!C39="","",Hilfe.FIN!C39) -> 32080 | H60: - | J60: =IF(Ber.FIN!C39="","",Ber.FIN!C39) ->  | K60: =IF(J60=F60,"Richtig!",IF(J60="","Fehlt","Falsch")) -> Fehlt | L60: 0 | M60: │ | N60: 1
D61: Umsatzbereich | F61: =IF(Hilfe.FIN!D40="","",Hilfe.FIN!D40) -> 44495 | H61: =IF(OR(J59="",J60=""),"-",SUM(J59:J60)) -> - | J61: =IF(Ber.FIN!D40="","",Ber.FIN!D40) ->  | K61: =IF(J61=F61,"Richtig!",IF(AND(H61<>"",J61<>F61,J61=H61),"Formel: OK",IF(J61="","Fehlt","Falsch"))) -> Fehlt | L61: 0 | M61: │ | N61: 1
D62: Anlagenbereich | F62: =IF(Hilfe.FIN!D43="","",Hilfe.FIN!D43) -> -25000 | H62: - | J62: =IF(Ber.FIN!D43="","",Ber.FIN!D43) ->  | K62: =IF(J62=F62,"Richtig!",IF(AND(H62<>"",J62<>F62,J62=H62),"Formel: OK",IF(J62="","Fehlt","Falsch"))) -> Fehlt | L62: 0 | M62: │ | N62: 1
D63: Fremdkapitalbereich | F63: =IF(Hilfe.FIN!D46="","",Hilfe.FIN!D46) -> -8500 | H63: - | J63: =IF(Ber.FIN!D46="","",Ber.FIN!D46) ->  | K63: =IF(J63=F63,"Richtig!",IF(AND(H63<>"",J63<>F63,J63=H63),"Formel: OK",IF(J63="","Fehlt","Falsch"))) -> Fehlt | L63: 0 | M63: │ | N63: 1
D64: Privatbereich | F64: =IF(Hilfe.FIN!D49="","",Hilfe.FIN!D49) -> -21870 | H64: - | J64: =IF(Ber.FIN!D49="","",Ber.FIN!D49) ->  | K64: =IF(J64=F64,"Richtig!",IF(AND(H64<>"",J64<>F64,J64=H64),"Formel: OK",IF(J64="","Fehlt","Falsch"))) -> Fehlt | L64: 0 | M64: │ | N64: 1
D65: Geldbereich | F65: =IF(Hilfe.FIN!D53="","",Hilfe.FIN!D53) -> 10875 | H65: - | J65: =IF(Ber.FIN!D53="","",Ber.FIN!D53) ->  | K65: =IF(J65=F65,"Richtig!",IF(AND(H65<>"",J65<>F65,J65=H65),"Formel: OK",IF(J65="","Fehlt","Falsch"))) -> Fehlt | L65: 0 | M65: │ | N65: 1
C67: 4. | D67: Analyse der Stabilität
D68: Veralterungsgrad von abnutzbarem Anlagevermögen
D69: Buchwert (31.12.) | F69: =IF(Hilfe.STAB!E13="","",Hilfe.STAB!E13) -> 123100 | H69: - | J69: =IF(Ber.STAB!E13="","",Ber.STAB!E13) ->  | K69: =IF(J69=F69,"Richtig!",IF(J69="","Fehlt","Falsch")) -> Fehlt | L69: =IF(K69="Richtig!",1,IF(K69="Formel: OK",0.5,IF(OR(K69="Falsch",K69="Fehlt"),0,""))) -> 0 | M69: │ | N69: 1
D70: Summe Anschaffungswert | F70: =IF(Hilfe.STAB!E14="","",Hilfe.STAB!E14) -> 251000 | H70: - | J70: =IF(Ber.STAB!E14="","",Ber.STAB!E14) ->  | K70: =IF(J70=F70,"Richtig!",IF(J70="","Fehlt","Falsch")) -> Fehlt | L70: =IF(K70="Richtig!",1,IF(K70="Formel: OK",0.5,IF(OR(K70="Falsch",K70="Fehlt"),0,""))) -> 0 | M70: │ | N70: 1
D71: Gebäude und bauliche Anlagen | F71: =IF(Hilfe.STAB!H13="","",Hilfe.STAB!H13) -> 0.490438247 | H71: =IF(OR(J69="",J70=""),"-",J69/J70) -> - | J71: =IF(Ber.STAB!H13="","",Ber.STAB!H13) ->  | K71: =IF(J71=F71,"Richtig!",IF(AND(H71<>"",J71<>F71,J71=H71),"Formel: OK",IF(J71="","Fehlt","Falsch"))) -> Fehlt | L71: =IF(K71="Richtig!",1,IF(K71="Formel: OK",0.5,IF(OR(K71="Falsch",K71="Fehlt"),0,""))) -> 0 | M71: │ | N71: 1
D73: Buchwert (31.12.) | F73: =IF(Hilfe.STAB!E18="","",Hilfe.STAB!E18) -> 106700.3333 | H73: - | J73: =IF(Ber.STAB!E18="","",Ber.STAB!E18) ->  | K73: =IF(J73=F73,"Richtig!",IF(J73="","Fehlt","Falsch")) -> Fehlt | L73: =IF(K73="Richtig!",1,IF(K73="Formel: OK",0.5,IF(OR(K73="Falsch",K73="Fehlt"),0,""))) -> 0 | M73: │ | N73: 1
D74: Summe Anschaffungswert | F74: =IF(Hilfe.STAB!E19="","",Hilfe.STAB!E19) -> 202106 | H74: - | J74: =IF(Ber.STAB!E19="","",Ber.STAB!E19) ->  | K74: =IF(J74=F74,"Richtig!",IF(J74="","Fehlt","Falsch")) -> Fehlt | L74: =IF(K74="Richtig!",1,IF(K74="Formel: OK",0.5,IF(OR(K74="Falsch",K74="Fehlt"),0,""))) -> 0 | M74: │ | N74: 1
D75: Maschinen und Geräte | F75: =IF(Hilfe.STAB!H18="","",Hilfe.STAB!H18) -> 0.5279424328 | H75: =IF(OR(J73="",J74=""),"-",J73/J74) -> - | J75: =IF(Ber.STAB!H18="","",Ber.STAB!H18) ->  | K75: =IF(J75=F75,"Richtig!",IF(AND(H75<>"",J75<>F75,J75=H75),"Formel: OK",IF(J75="","Fehlt","Falsch"))) -> Fehlt | L75: =IF(K75="Richtig!",1,IF(K75="Formel: OK",0.5,IF(OR(K75="Falsch",K75="Fehlt"),0,""))) -> 0 | M75: │ | N75: 1
D77: Eigenkapitalveränderung | F77: =IF(Hilfe.STAB!E29="","",Hilfe.STAB!E29) -> 2975.333333 | H77: - | J77: =IF(Ber.STAB!E29="","",Ber.STAB!E29) ->  | K77: =IF(J77=F77,"Richtig!",IF(J77="","Fehlt","Falsch")) -> Fehlt | L77: =IF(K77="Richtig!",1,IF(K77="Formel: OK",0.5,IF(OR(K77="Falsch",K77="Fehlt"),0,""))) -> 0 | M77: │ | N77: 1
D79: Kapitaldienstgrenze
D80: langfristige Kapitaldienstgrenze | F80: =IF(Hilfe.STAB!E41="","",Hilfe.STAB!E41) -> 4075.333333 | H80: - | J80: =IF(Ber.STAB!E41="","",Ber.STAB!E41) ->  | K80: =IF(J80=F80,"Richtig!",IF(J80="","Fehlt","Falsch")) -> Fehlt | L80: =IF(K80="Richtig!",1,IF(K80="Formel: OK",0.5,IF(OR(K80="Falsch",K80="Fehlt"),0,""))) -> 0 | M80: │ | N80: 1
D81: mittelfristige Kapitaldienstgrenze | F81: =IF(Hilfe.STAB!E43="","",Hilfe.STAB!E43) -> 15375.33333 | H81: - | J81: =IF(Ber.STAB!E43="","",Ber.STAB!E43) ->  | K81: =IF(J81=F81,"Richtig!",IF(J81="","Fehlt","Falsch")) -> Fehlt | L81: =IF(K81="Richtig!",1,IF(K81="Formel: OK",0.5,IF(OR(K81="Falsch",K81="Fehlt"),0,""))) -> 0 | M81: │ | N81: 1
D82: kurzfristige Kapitaldienstgrenze | F82: =IF(Hilfe.STAB!E45="","",Hilfe.STAB!E45) -> 22175 | H82: - | J82: =IF(Ber.STAB!E45="","",Ber.STAB!E45) ->  | K82: =IF(J82=F82,"Richtig!",IF(J82="","Fehlt","Falsch")) -> Fehlt | L82: =IF(K82="Richtig!",1,IF(K82="Formel: OK",0.5,IF(OR(K82="Falsch",K82="Fehlt"),0,""))) -> 0 | M82: │ | N82: 1
C84: Gesamtpunktezahl | L84: =SUM(L9:L82) -> 0 | M84: │ | N84: =SUM(N9:N82) -> 51
C87: Note | E87: =L84/N84 -> 0
D88: =E88-E98 -> 46 | E88: =N84 -> 51 | F88: =IF(AND(L84>=D88-0.5,L84<=E88),"u","j") -> j | G88: =IF(OR(L84=D88-0.5,L84=D88),"-","") -> 
D89: =E89-E98 -> 40 | E89: =D88-1 -> 45 | F89: =IF(AND(L84>=D89-0.5,L84<=E89),"v","k") -> k | G89: =IF(OR(L84=D89-0.5,L84=D89),"-",IF(OR(L84=E89-0.5,L84=E89),"+","")) -> 
D90: =E90-E98-1 -> 33 | E90: =D89-1 -> 39 | F90: =IF(AND(L84>=D90-0.5,L84<=E90),"w","l") -> l | G90: =IF(OR(L84=D90-0.5,L84=D90),"-",IF(OR(L84=E90-0.5,L84=E90),"+","")) -> 
D91: =E91-E98-1 -> 26 | E91: =D90-1 -> 32 | F91: =IF(AND(L84>=D91-0.5,L84<=E91),"x","m") -> m | G91: =IF(OR(L84=D91-0.5,L84=D91),"-",IF(OR(L84=E91-0.5,L84=E91),"+","")) -> 
D92: 0 | E92: =D91-1 -> 25 | F92: =IF(AND(L84>=D92-0.5,L84<=E92),"y","n") -> y | G92: =IF(OR(L84=E92-1,L84=E92-0.5,L84=E92),"+","") -> 
D95: Korrekturblatt - Maschinenkostenrechnung
F96: =COUNT(F9:F82) -> 51 | J96: =COUNT(J9:J82) -> 0
D97: Abstufung: | E97: 0.1
E98: =ROUND(N84*E97,0) -> 5

Sheet Hilfe.BILAN
C1: Bilanzanalyse
C3: Die Bilanzanalyse liefert wertvolle Auskünfte hinsichtlich der finanzwirtschaftlichen Situation des Betriebs bzw. Unternehmens. Bei Vergleichen zwischen Betrieben muss darauf geachtet werden, dass die Posten der Bilanz einheitlich bewertet wurden (wichtig vor allem beim Boden oder dem stehenden Holz).
C5: Eigenkapitalanteil (31.12.) | N5: B U C H F Ü H R U N G
C6: Eigenkapital | D6: = | E6: =+BUCHFÜHRUNG!F15 -> 188024.9333 | F6: x 100 | G6: = | H6: =+E6/E7 -> 0.6976161018
C7: Gesamtkapital | E7: =+BUCHFÜHRUNG!F22 -> 269524.9333
C10: Verschuldungsgrad (31.12.)
C11: Fremdkapital | D11: = | E11: =+BUCHFÜHRUNG!F16 -> 81500 | F11: x 100 | G11: = | H11: =+E11/E12 -> 0.3023838982
C12: Gesamtkapital | E12: =+BUCHFÜHRUNG!F22 -> 269524.9333
C15: Je höher der Eigenkapitalanteil und je niedriger der Verschuldungsgrad, desto geringer ist die Abhängigkeit eines landwirtschaftlichen Betriebs von Kreditgebern und desto vorsichtiger wurde finanziert.
C17: Anlagenintensität (31.12.)
C18: Anlagevermögen1 | D18: = | E18: =+BUCHFÜHRUNG!D15+BUCHFÜHRUNG!D16 -> 229800.3333 | F18: x 100 | G18: = | H18: =+E18/E19 -> 0.8526125227
C19: Gesamtvermögen | E19: =+BUCHFÜHRUNG!D22 -> 269524.9333
C20: 1 Wirtschaftsgebäude + Maschinen und Geräte
C23: Für einen landwirtschaftlichen Betrieb gilt:
C24: Je höher die Anlagenintensität, desto mehr ist er in seinem Aufbau gebunden, umso stärker ist die Belastung mit Fixkosten.
C25: Je höher die Anlagenintensität, desto langsamer setzt er das Vermögen um, die Verzinsung des Vermögens ist meist gering.
C26: Die relative Erhöhung der Anlagenintensität kann sich jedoch auch aus Einsparungen beim Umlaufvermögen ergeben.
C29: Goldene Bilanzregel im engeren Sinn (31.12.)
C30: EK + langfrist. FK2 | D30: = | E30: =+BUCHFÜHRUNG!F15+BUCHFÜHRUNG!F16 -> 269524.9333 | F30: x 100 | G30: = | H30: =+E30/E31 -> 1.17286572
C31: Anlagenvermögen (AV) | E31: =+BUCHFÜHRUNG!D15+BUCHFÜHRUNG!D16 -> 229800.3333
C32: 2 EK = Eigenkapital, FK = Fremdkapital
C35: Die „goldene Bilanzregel“ im engeren Sinne besagt, dass das Anlagevermögen langfristig zu finanzieren ist.
C37: Goldene Bilanzregel im weiteren Sinn (31.12.)
C38: EK + langfrist. FK | D38: = | E38: =+E30 -> 269524.9333 | F38: x 100 | G38: = | H38: =+E38/E39 -> 1.024615098
C39: AV + gebundenes UV3 | E39: =+E31+BUCHFÜHRUNG!D17+BUCHFÜHRUNG!D18 -> 263049.9333
C40: 3 gebundenes Umlaufvermögen (UV): Viehvermögen und Vorräte
C43: Als „goldene Bilanzregel“ im weiteren Sinne wird der Grundsatz bezeichnet, dass das Anlage- und das gebundene Umlaufvermögen zusammen langfristig finanziert werden sollen:

Sheet Hilfe.RENT
C1: Analyse der Rentabilität
C3: Die Analyse der Rentabilität ermittelt den Ertrag der eingesetzten Produktionsfaktoren „Arbeit“ und „Kapital“ im Vergleich zum benötigten Aufwand.
N4: B U C H F Ü H R U N G
C5: Einkünfte aus Land- und Forstwirtschaft
C6: =+BUCHFÜHRUNG!F32 -> 75190 | D6: - | E6: =+SUM(BUCHFÜHRUNG!D25:D30) -> 50179.66667 | G6: = | H6: =+C6-E6 -> 25010.33333
C9: Die Einkünfte stellen
C10: die Abgeltung für die geleistete Arbeit der nicht entlohnten Arbeitskräfte für die unternehmerische Tätigkeit und
C11: die Verzinsung für den Einsatz des Eigenkapitals dar.
C13: Gewinnrate
C14: Einkünfte LuF | D14: = | E14: =+H6 -> 25010.33333 | F14: x 100 | G14: = | H14: =+E14/E15 -> 0.3326284524
C15: Ertrag | E15: =+Hilfe.RENT!C6 -> 75190
C18: Je höher die Gewinnrate eines Unternehmens, desto effizienter arbeitet es und umso leichter können Krisenzeiten bei sinkenden Erzeugerpreisen überstanden werden.
C20: =BUCHFÜHRUNG!D49/100 -> 0.035
C21: =+H6 -> 25010.33333 | D21: Gewinn
C22: =-BUCHFÜHRUNG!F15*C20 -> -6580.872667 | D22: Zinsansatz Eigenkapital*
C23: =+C21+C22 -> 18429.46067 | D23: Arbeitsverdienst
C24: ="* "&TEXT(BUCHFÜHRUNG!F15,"# ##0,-")&" Euro mal Zinssatz von "&BUCHFÜHRUNG!D49&"%" -> * 188 025,- Euro mal Zinssatz von 3,5%
C27: Vermögensrente
C28: =+H6 -> 25010.33333 | D28: Gewinn
C29: =-BUCHFÜHRUNG!D48 -> -21297 | D29: Lohnansatz
C30: =+C28+C29 -> 3713.333333 | D30: Vermögensrente
C33: Unternehmergewinn
C34: =+H6 -> 25010.33333 | D34: Gewinn
C35: =+C22 -> -6580.872667 | D35: Zinsansatz Eigenkapital
C36: =+C29 -> -21297 | D36: Lohnansatz
C37: =+C34+C35+C36 -> -2867.539333 | D37: Unternehmergewinn (-verlust)
C40: Der Unternehmergewinn bzw. Unternehmerverlust informiert über die Entlohnung der unternehmerischen Leistung, wenn vom Gewinn sowohl der Lohn- als auch der Zinsansatz abgezogen sind.
C42: Eigenkapitalrentabiliät
C43: Einkünfte LuF - LA | D43: = | E43: =+C34+C36 -> 3713.333333 | F43: x 100 | G43: = | H43: =+E43/E44 -> 0.01974915384
C44: Eigenkapital | E44: =+BUCHFÜHRUNG!F15 -> 188024.9333
C45: LA = Lohnansatz
C48: Vom Gewinn wird der Lohnansatz für die nicht entlohnten Arbeitskräfte abzogen, die resultierende Differenz wird durch das betrieblich gebundene Eigenkapital dividiert.
C50: Gesamtkapitalrentabilität | J50: ROI
C51: Einkünfte LuF + SZ - LA | D51: = | E51: =+H6+C36+BUCHFÜHRUNG!D27 -> 4813.333333 | F51: x 100 | G51: = | H51: =+E51/E52 -> 0.01785858278
C52: Gesamtkapital | E52: =+BUCHFÜHRUNG!D22 -> 269524.9333
C53: LA = Lohnansatz, SZ = Schuldzinsen
C56: Schulden sind Bestandteil des Gesamtkapitals, deshalb werden die Schuldzinsen wieder hinzugerechnet (diese wurden im Aufwand zur Ermittlung der Einkünfte aus LuF).
F59: =+H6 -> 25010.33333 | H59: Einkünfte aus LuF (Gewinn)
F60: =BUCHFÜHRUNG!D27 -> 1100 | H60: Schuldzinsen
F61: =+C29 -> -21297 | H61: Lohnansatz
F62: =+F59+F60+F61 -> 4813.333333 | H62: =C51 -> Einkünfte LuF + SZ - LA

Sheet Hilfe.FIN
A3: Analyse der Finanzierungskraft
A5: Die Analyse der Finanzierungskraft meint im Wesentlichen die Gegenüberstellung von Einnahmen und Ausgaben. Die Änderungen des Geldbereichs sollen die Finanzierungskraft aus Eigenmitteln veranschaulichen. Als Kennzahlen bzw. Methoden haben sich in diesem Zusammenhang der Cash-Flow sowie die Kapitalflussrechnung etabliert. | N5: Formeln anwenden | P5: B U C H F Ü H R U N G
N6: Die Werte stammen aus der Buchführung!
A7: Cash Flow
A9: Bezeichnung | B9: Euro | C9: Euro gesamt
A10: Einkünfte LuF | B10: =+BUCHFÜHRUNG!D31 -> 25010.33333 | D10: Einkünfte LuF laut GuV
A11: - Naturallieferung Milch | B11: =+BUCHFÜHRUNG!F138 -> 165 | D11: Ist ein Ertrag, aber keine Einnahme
A12: + Minderung Viehvermögen | B12: =+BUCHFÜHRUNG!D148 -> 0 | D12: Ist ein Aufwand, aber sind keine Ausgaben
A13: + Abschreibungen | B13: =+BUCHFÜHRUNG!D130+BUCHFÜHRUNG!D131 -> 18099.66667 | D13: Ist ein Aufwand, aber sind keine Ausgaben
A14: = Cash Flow I | C14: =+B10-B11+B12+B13 -> 42945
A15: - Investitionen | B15: =+BUCHFÜHRUNG!D60 -> 25000 | D15: Kauf eines Ladewagens
A16: - Kreditrückzahlungen | B16: =+BUCHFÜHRUNG!D98 -> 8500 | D16: Tilgung
A17: = Cash Flow II | C17: =+C14-B15-B16 -> 9445
A18: + Einlagen | B18: =+BUCHFÜHRUNG!F155 -> 650 | D18: Familienbeihilfe
A19: - Entnahmen | B19: =+BUCHFÜHRUNG!D155+BUCHFÜHRUNG!D156 -> 22520 | D19: Ausgaben für den Haushalt plus private Stromausgaben
A20: = Cash Flow III | C20: =+C17+B18-B19 -> -12425
A22: Der Cash-Flow stellt die Einnahmen und Ausgaben eines Unternehmens während eines Jahres gegenüber. Ausgehend von der Gewinn- und Verlustrechnung errechnet sich der Cash-Flow I, indem vom Gewinn die Abschreibungen und Minderwerte hinzugerechnet und die Mehrwerte abgezogen werden. Vom Cash-Flow I werden Ausgaben für Investitionen sowie Tilgungen für Kredite abgezogen, als Ergebnis wird der Cash-Flow II ausgewiesen. Der Cash-Flow III errechnet sich, indem vom Cash-Flow II die Einlagen hinzu- und die Entnahmen des Privatbereichs abgezogen werden. Der erhaltene Betrag wird auch als Free Cash-Flow ohne Fremdfinanzierung oder als Geldüberschuss bezeichnet.
A26: Analyse der Finanzierungskraft
A28: Kapitalflussrechnung
A30: Bezeichnung | B30: Mittel- herkunft | C30: Mittel-verwendung | D30: Differenz
A31: Milchverkauf | B31: =+BUCHFÜHRUNG!F137 -> 44125 | E31: Nur Milchverkauf ohne Naturallierung an Haushalt
A32: Urlaub am Bauernhof | B32: =+BUCHFÜHRUNG!F143 -> 25000 | E32: Einnahmen Urlaub am Bauernhof
A33: Rinderverkauf | B33: =+BUCHFÜHRUNG!F148 -> 7450 | E33: Bestandesminderungen werden nicht berücksichtigt; sind keine Ausgaben, nur Aufwand
A34: Summe Einnahmen | B34: =SUM(B31:B33) -> 76575
A35: Dünger | B35: =-BUCHFÜHRUNG!D110 -> -4500 | C35: =+BUCHFÜHRUNG!F111 -> 4500 | E35: Aufwand für Dünger
A36: Diverse Betriebsmittel | B36: =-BUCHFÜHRUNG!D115 -> -25000 | C36: =+BUCHFÜHRUNG!F116 -> 25000 | E36: Aufwand für diverse Betriebsmittel
A37: Schuldzinsen | B37: =-BUCHFÜHRUNG!D120 -> -1100 | C37: =+BUCHFÜHRUNG!F121 -> 1100 | E37: Aufwand für Schuldzinsen
A38: Strom | B38: =-BUCHFÜHRUNG!F126 -> -1480 | C38: =+BUCHFÜHRUNG!F126 -> 1480 | E38: Nur betrieblicher Strom (Privatanteil ist abgezogen)
A39: Summe Ausgaben | C39: =SUM(C35:C38) -> 32080
A40: Umsatzbereich | D40: =+B34-C39 -> 44495
A41: Desinvestitionen | B41: 0 | E41: Keine Verkäufe von Anlagen
A42: Investitionen | C42: =+BUCHFÜHRUNG!D60 -> 25000 | E42: Kauf eines Ladewagens
A43: Anlagenbereich | D43: =+B41-C42 -> -25000
A44: Kreditaufnahme | B44: 0 | E44: Keine Aufnahme neuer Kredit
A45: Kreditrückzahlung | C45: =+BUCHFÜHRUNG!D98 -> 8500 | E45: Tilgung
A46: Fremdkapitalbereich | D46: =+B44-C45 -> -8500
A47: Einlagen | B47: =+BUCHFÜHRUNG!F155 -> 650 | E47: Familienbeihilfe
A48: Entnahmen | C48: =+BUCHFÜHRUNG!D155+BUCHFÜHRUNG!D156 -> 22520 | E48: Ausgaben für den Haushalt plus private Stromausgaben
A49: Privatbereich | D49: =+B47-C48 -> -21870
A50: Erhalt Forderungen | B50: =+BUCHFÜHRUNG!D85 -> 14800 | E50: Offene Forderung wurde an uns gezahlt
A51: Zunahme Girokonto | C51: =+BUCHFÜHRUNG!F87-BUCHFÜHRUNG!D81 -> 1075 | E51: Endbestand minus Anfangsbestand
A52: Zunahme Kassa | C52: =+BUCHFÜHRUNG!F93-BUCHFÜHRUNG!D91 -> 2850 | E52: Endbestand minus Anfangsbestand
A53: Geldbereich | D53: =+B50-C51-C52 -> 10875
A55: Kontrollsumme | D55: =+D40+D43+D46+D49+D53 -> 0 | E55: Kontrollsumme muss 0 sein!
A57: Die Kapitalflussrechnung stellt eine Bewegungsrechnung dar, die für einen bestimmten Zeitraum Herkunft und Verwendung verschiedener, liquiditätswirksamer Mittel gegenüberstellt. Die Beträge werden nach Mittelherkunft und Mittelverwendung getrennt.
P61: ACHTUNG: MUSS NULL (0) SEIN!!!

Sheet Hilfe.STAB
C1: Analyse der Stabilität
C3: Stabilität wird definiert als die Fähigkeit eines Unternehmens, Rentabilität und Liquidität auch bei Eintritt unvorhergesehener Ereignisse langfristig zu sichern. | N3: ANLAGENVERZEICHNIS - RENTABILITTÄT - BUCHFÜHRUNG
C5: Fremdkapitalanteil
C6: siehe Bilanzanalyse
C8: Anlagenintensität
C9: siehe Bilanzanalyse
C11: Veralterungsgrad von abnutzbarem Anlagevermögen
C12: Gebäude und bauliche Anlagen
C13: Buchwert (31.12.) | D13: = | E13: =+ANLAGENVERZEICHNISSE!J14 -> 123100 | F13: x 100 | G13: = | H13: =+E13/E14 -> 0.490438247
C14: Summe Anschaffungswert | E14: =+ANLAGENVERZEICHNISSE!E13 -> 251000
C17: Maschinen und Geräte
C18: Buchwert (31.12.) | D18: = | E18: =+ANLAGENVERZEICHNISSE!J30 -> 106700.3333 | F18: x 100 | G18: = | H18: =+E18/E19 -> 0.5279424328
C19: Summe Anschaffungswert | E19: =+ANLAGENVERZEICHNISSE!E29 -> 202106
C22: Je niedriger der Veralterungsgrad, desto älter sind die Anlagengüter, das heißt, desto größer ist der Investitionsrückstand, sofern die Nutzungsdauer richtig eingeschätzt wurde. In einer ersten Näherung könnte die Aussage getroffen werden, dass bei einer Relation von Buchwert zu Anschaffungswert gleich 0,5 der Betrieb kontinuierlich investiert hat. Dies gilt aber streng genommen nur dann, wenn eine Inflationsrate von null Prozent vorläge.
C24: Eigenkapitalveränderung | M24: Analyse der Rentabilität
C25: Einkünfte aus LuF | E25: =+BUCHFÜHRUNG!D31 -> 25010.33333
C26: + Einlagen | E26: =+BUCHFÜHRUNG!F35 -> 650 | F26: Familienbeihilfe
C27: = Gesamt(Haushalts)einkommen | E27: =+E25+E26 -> 25660.33333
C28: - Verbrauch | E28: =+BUCHFÜHRUNG!D35+BUCHFÜHRUNG!D36+BUCHFÜHRUNG!D37 -> 22685 | F28: Privatentnahmen *
C29: = Eigenkapitalveränderung | E29: =+E27-E28 -> 2975.333333 | F29: **
C32: Die Höhe der Eigenkapitalveränderung informiert darüber, inwieweit der Gewinn und die Einlagen ausgereicht haben, die Entnahmen abzudecken. Eine positive Eigenkapitalveränderung ist deshalb erforderlich, da wegen der Inflation die zurückgelegten Abschreibungen für eine Ersatzinvestition nicht ausreichen. Die Eigenkapitalveränderung muss daher die Differenz aus Wiederbeschaffungswert und ursprünglichem Anschaffungswert abdecken.
L36: Formel anwenden
C37: Kapitaldienstgrenze | L37: Werte stammen aus der Analyse der Stabilität (Eigenkapüitalveränderung), aus der Gewinn und Verlustrechnung
C38: Bezeichnung | E38: Euro | L38: (gezahlte Schuldzinsen) und aus dem Anlagenverzeichnis (Afa für Gebäude und Maschinen)
C39: Eigenkapitalveränderung | E39: =+E29 -> 2975.333333
C40: + gezahlte Schuldzinsen | E40: =+BUCHFÜHRUNG!D27 -> 1100
C41: = langfristige Kapitaldienstgrenze | E41: =+E39+E40 -> 4075.333333
C42: + AfA Gebäude | E42: =+BUCHFÜHRUNG!D130 -> 11300
C43: = mittelfristige Kapitaldienstgrenze | E43: =+E41+E42 -> 15375.33333
C44: + AfA Maschinen | E44: =+BUCHFÜHRUNG!D131 -> 6799.666667
C45: = kurzfristige Kapitaldienstgrenze | E45: =+E43+E44 -> 22175
C47: Die langfristige Kapitaldienstgrenze drückt aus, wie viel maximal für Zinsen und Tilgung (=Kapitaldienst) bereits bestehender und zusätzlicher Kredite maximal zur Verfügung steht. Deshalb werden zur Eigenkapitalveränderung auch die gezahlten Schuldzinsen, die bereits im Aufwand enthalten waren, hinzugezählt. Bei der mittelfristigen Kapitaldienstgrenze werden auch die Abschreibungen für Gebäude und bauliche Anlagen, Bodenverbesserungen und Dauerkulturen dazugezählt. Bei der kurzfristigen Kapitaldienstgrenze sind noch die Abschreibungen für Maschinen und Geräte berücksichtigt.
C49: * Ausgaben Haushalt, Strom Privatanteil, Naturallieferung Milch
C50: ** Auch Überdeckung des Verbrauchs genannt
